Organisation Name,Organisation Code,Organisational Unit,Service Category Label,Procurement Category,Supplier Name,Supplier Other ID,Payment Date,Transaction Number,Amount (�),Purpose
Eden District Council,http://opendatacommunities.org/id/district-council/eden,Technical Services Manager,Recycling,Supplies general,CUMBRIA WASTE RECYCLING LTD,CUM022,04/03/2022,199771,3041.25,GREEN WHEELIE BINS
Eden District Council,http://opendatacommunities.org/id/district-council/eden,Environmental Services,1996 Mandatory Renovation Grants,Capital grants,PPM LTD,PPM001,04/03/2022,199788,5123,FIN PAYMENT GRANT REF 210026
Eden District Council,http://opendatacommunities.org/id/district-council/eden,Commercial Services Manager,Commercial Services,Agency Staff,REDACTED INOFRMATION,BAL010,04/03/2022,199796,4666.5,TEAM SUPPORT JAN 22
Eden District Council,http://opendatacommunities.org/id/district-council/eden,Transformation & Customers Head of,Central Expenses,Supplies general,HEATONS GROUP LTD,LAK004,04/03/2022,199801,665.48,STATIONERY / PAPER / CHAIR
Eden District Council,http://opendatacommunities.org/id/district-council/eden,Environmental Services,1996 Mandatory Renovation Grants,Capital grants,HANDICARE ACCESSIBILITY LTD,FRE002,04/03/2022,199814,1370,FIN PAYMENT GRANT REF 210064
Eden District Council,http://opendatacommunities.org/id/district-council/eden,Environmental Services,1996 Mandatory Renovation Grants,Capital grants,TOP NOTCH CONTRACTORS LTD,TOP003,04/03/2022,199822,9720,FIN PAYMENT GRANT REF 200082
Eden District Council,http://opendatacommunities.org/id/district-council/eden,Environmental Services,Environmental Services,Agency Staff,VIVID RESOURCING,VIV001,04/03/2022,199824,1110,TIME SHEET WE 30.01.22 PO
Eden District Council,http://opendatacommunities.org/id/district-council/eden,Commercial Services Manager,Commercial Services,Agency Staff,VIVID RESOURCING,VIV001,04/03/2022,199826,8750,TIME SHEET WE 30.01.22FM
Eden District Council,http://opendatacommunities.org/id/district-council/eden,Environmental Services,Environmental Services,Agency Staff,VIVID RESOURCING,VIV001,04/03/2022,199827,976.8,TIME SHEET WE 30.01.22 BN
Eden District Council,http://opendatacommunities.org/id/district-council/eden,Commercial Services Manager,Commercial Services,Agency Staff,VIVID RESOURCING,VIV001,04/03/2022,199829,2750,TIME SHEET WE30.01.22 GM
Eden District Council,http://opendatacommunities.org/id/district-council/eden,Technical Services Manager,Technical Services,Salaries,VIVID RESOURCING,VIV001,04/03/2022,199830,1645,TIME SHEET WE 30.1.22 DH
Eden District Council,http://opendatacommunities.org/id/district-council/eden,Financial Services Manager,Financial Services,Agency Staff,CIPFA PENNA,CIP013,04/03/2022,199867,13209,INTERIM MANAGMENT JAN 22 DB
Eden District Council,http://opendatacommunities.org/id/district-council/eden,Financial Services Manager,Financial Services,Agency Staff,CIPFA PENNA,CIP013,04/03/2022,199868,17160,INTERIM MANAGEMENT JAN 22 PS
Eden District Council,http://opendatacommunities.org/id/district-council/eden,Chief Executive's,Chief Executive,Agency Staff,CIPFA PENNA,CIP013,04/03/2022,199869,21240,INTERIM MANAGMENT JAN22 IF
Eden District Council,http://opendatacommunities.org/id/district-council/eden,Financial Services Manager,Emergency Planning and Works,Grants and contributions,APPLEBY TRAVEL,40028303,04/03/2022,200601,1920,COVID SMALL BUSINESS GRANT
Eden District Council,http://opendatacommunities.org/id/district-council/eden,Financial Services Manager,Emergency Planning and Works,Grants and contributions,THE RATE PAYER,40035738,04/03/2022,200602,1920,COVID SMALL BUSINESS GRANT
Eden District Council,http://opendatacommunities.org/id/district-council/eden,Financial Services Manager,Emergency Planning and Works,Grants and contributions,Titterington Holidays Limited,40046516,04/03/2022,200603,1920,COVID SMALL BUSINESS GRANT
Eden District Council,http://opendatacommunities.org/id/district-council/eden,Financial Services Manager,Emergency Planning and Works,Grants and contributions,Titterington Coaches Limited,40057134,04/03/2022,200604,1920,COVID SMALL BUSINESS GRANT
Eden District Council,http://opendatacommunities.org/id/district-council/eden,Financial Services Manager,Emergency Planning and Works,Grants and contributions,Lakeland Commercials Ltd,40127934,04/03/2022,200605,1920,COVID SMALL BUSINESS GRANT
Eden District Council,http://opendatacommunities.org/id/district-council/eden,Financial Services Manager,Emergency Planning and Works,Grants and contributions,Alba Travel Limited,40159948,04/03/2022,200606,1920,COVID SMALL BUSINESS GRANT
Eden District Council,http://opendatacommunities.org/id/district-council/eden,Financial Services Manager,Emergency Planning and Works,Grants and contributions,CO. SEXC. CycleActive Ltd,40167772,04/03/2022,200607,1920,COVID SMALL BUSINESS GRANT
Eden District Council,http://opendatacommunities.org/id/district-council/eden,Financial Services Manager,Emergency Planning and Works,Grants and contributions,Tirril Brewery Ltd,40170365,04/03/2022,200608,1920,COVID SMALL BUSINESS GRANT
Eden District Council,http://opendatacommunities.org/id/district-council/eden,Financial Services Manager,Emergency Planning and Works,Grants and contributions,Heart and Soul,40206806,04/03/2022,200609,1920,COVID SMALL BUSINESS GRANT
Eden District Council,http://opendatacommunities.org/id/district-council/eden,Financial Services Manager,Emergency Planning and Works,Grants and contributions,N&J Dowding LTD,40207472,04/03/2022,200610,1920,COVID SMALL BUSINESS GRANT
Eden District Council,http://opendatacommunities.org/id/district-council/eden,Financial Services Manager,Emergency Planning and Works,Grants and contributions,Reays Coaches Ltd,40211327,04/03/2022,200611,1920,COVID SMALL BUSINESS GRANT
Eden District Council,http://opendatacommunities.org/id/district-council/eden,Financial Services Manager,Emergency Planning and Works,Grants and contributions,THE RATE PAYER,40217462,04/03/2022,200612,1920,COVID SMALL BUSINESS GRANT
Eden District Council,http://opendatacommunities.org/id/district-council/eden,Financial Services Manager,Emergency Planning and Works,Grants and contributions, Pamelas hair design,40220024,04/03/2022,200613,1920,COVID SMALL BUSINESS GRANT
Eden District Council,http://opendatacommunities.org/id/district-council/eden,Financial Services Manager,Emergency Planning and Works,Grants and contributions,Lake District Farmers Limited,40220055,04/03/2022,200614,3804,COVID SMALL BUSINESS GRANT
Eden District Council,http://opendatacommunities.org/id/district-council/eden,Financial Services Manager,Emergency Planning and Works,Grants and contributions,Saddle Skedaddle Limited,40220123,04/03/2022,200615,1920,COVID SMALL BUSINESS GRANT
Eden District Council,http://opendatacommunities.org/id/district-council/eden,Financial Services Manager,Emergency Planning and Works,Grants and contributions,Beautique,40224835,04/03/2022,200616,1920,COVID SMALL BUSINESS GRANT
Eden District Council,http://opendatacommunities.org/id/district-council/eden,Financial Services Manager,Emergency Planning and Works,Grants and contributions,Calico Club Greenacres,40226220,04/03/2022,200617,1920,COVID SMALL BUSINESS GRANT
Eden District Council,http://opendatacommunities.org/id/district-council/eden,Financial Services Manager,Emergency Planning and Works,Grants and contributions,The Nailbar,40227605,04/03/2022,200618,1920,COVID SMALL BUSINESS GRANT
Eden District Council,http://opendatacommunities.org/id/district-council/eden,Financial Services Manager,Emergency Planning and Works,Grants and contributions,THE RATE PAYER,40227988,04/03/2022,200619,1920,COVID SMALL BUSINESS GRANT
Eden District Council,http://opendatacommunities.org/id/district-council/eden,Financial Services Manager,Emergency Planning and Works,Grants and contributions,WASTE TRANSFER SERVICES LTD,40228424,04/03/2022,200620,1920,COVID SMALL BUSINESS GRANT
Eden District Council,http://opendatacommunities.org/id/district-council/eden,Financial Services Manager,Emergency Planning and Works,Grants and contributions,THE HAIR LOFT,40230205,04/03/2022,200621,1920,COVID SMALL BUSINESS GRANT
Eden District Council,http://opendatacommunities.org/id/district-council/eden,Financial Services Manager,Emergency Planning and Works,Grants and contributions,jackson family butchers limited,40231734,04/03/2022,200622,1920,COVID SMALL BUSINESS GRANT
Eden District Council,http://opendatacommunities.org/id/district-council/eden,Financial Services Manager,Emergency Planning and Works,Grants and contributions,Greg Malloy Limited,40232126,04/03/2022,200623,1920,COVID SMALL BUSINESS GRANT
Eden District Council,http://opendatacommunities.org/id/district-council/eden,Financial Services Manager,Emergency Planning and Works,Grants and contributions,Timeless Hairdressing,40232744,04/03/2022,200624,1920,COVID SMALL BUSINESS GRANT
Eden District Council,http://opendatacommunities.org/id/district-council/eden,Financial Services Manager,Emergency Planning and Works,Grants and contributions,Doggies n Moggies Retreat,40233921,04/03/2022,200625,1920,COVID SMALL BUSINESS GRANT
Eden District Council,http://opendatacommunities.org/id/district-council/eden,Financial Services Manager,Emergency Planning and Works,Grants and contributions,Eden Wedding Boutique,40234290,04/03/2022,200626,1920,COVID SMALL BUSINESS GRANT
Eden District Council,http://opendatacommunities.org/id/district-council/eden,Financial Services Manager,Emergency Planning and Works,Grants and contributions,THE RATE PAYER,40235132,04/03/2022,200627,1920,COVID SMALL BUSINESS GRANT
Eden District Council,http://opendatacommunities.org/id/district-council/eden,Financial Services Manager,Emergency Planning and Works,Grants and contributions,OnlyWillow Jewellery & Gifts,40236968,04/03/2022,200628,1920,COVID SMALL BUSINESS GRANT
Eden District Council,http://opendatacommunities.org/id/district-council/eden,Financial Services Manager,Emergency Planning and Works,Grants and contributions,Worldwide travel connections Ltd,40239998,04/03/2022,200629,1920,COVID SMALL BUSINESS GRANT
Eden District Council,http://opendatacommunities.org/id/district-council/eden,Financial Services Manager,Emergency Planning and Works,Grants and contributions,North lakes Kick boxing,40240097,04/03/2022,200630,1920,COVID SMALL BUSINESS GRANT
Eden District Council,http://opendatacommunities.org/id/district-council/eden,Financial Services Manager,Emergency Planning and Works,Grants and contributions,THE RATE PAYER,40240172,04/03/2022,200631,1920,COVID SMALL BUSINESS GRANT
Eden District Council,http://opendatacommunities.org/id/district-council/eden,Financial Services Manager,Emergency Planning and Works,Grants and contributions,Cumbria dj store,40240486,04/03/2022,200632,1920,COVID SMALL BUSINESS GRANT
Eden District Council,http://opendatacommunities.org/id/district-council/eden,Financial Services Manager,Emergency Planning and Works,Grants and contributions,Salon Rouge,40240646,04/03/2022,200633,1920,COVID SMALL BUSINESS GRANT
Eden District Council,http://opendatacommunities.org/id/district-council/eden,Financial Services Manager,Emergency Planning and Works,Grants and contributions,Wade & co. Barbers,40240868,04/03/2022,200634,1920,COVID SMALL BUSINESS GRANT
Eden District Council,http://opendatacommunities.org/id/district-council/eden,Financial Services Manager,Emergency Planning and Works,Grants and contributions,The cake orchard,40241588,04/03/2022,200635,1920,COVID SMALL BUSINESS GRANT
Eden District Council,http://opendatacommunities.org/id/district-council/eden,Financial Services Manager,Emergency Planning and Works,Grants and contributions,Kennels & Cattery,40243003,04/03/2022,200636,1920,COVID SMALL BUSINESS GRANT
Eden District Council,http://opendatacommunities.org/id/district-council/eden,Financial Services Manager,Emergency Planning and Works,Grants and contributions,The Horseshoe Laundrette,40243409,04/03/2022,200637,1920,COVID SMALL BUSINESS GRANT
Eden District Council,http://opendatacommunities.org/id/district-council/eden,Financial Services Manager,Emergency Planning and Works,Grants and contributions,Appleby Creamery Ltd,40244211,04/03/2022,200638,3804,COVID SMALL BUSINESS GRANT
Eden District Council,http://opendatacommunities.org/id/district-council/eden,Financial Services Manager,Emergency Planning and Works,Grants and contributions,Totalpost,40246378,04/03/2022,200639,1920,COVID SMALL BUSINESS GRANT
Eden District Council,http://opendatacommunities.org/id/district-council/eden,Financial Services Manager,Emergency Planning and Works,Grants and contributions,THE RATE PAYER,40247265,04/03/2022,200640,1920,COVID SMALL BUSINESS GRANT
Eden District Council,http://opendatacommunities.org/id/district-council/eden,Financial Services Manager,Emergency Planning and Works,Grants and contributions,Jack�s Takeaway,40247470,04/03/2022,200641,1920,COVID SMALL BUSINESS GRANT
Eden District Council,http://opendatacommunities.org/id/district-council/eden,Financial Services Manager,Emergency Planning and Works,Grants and contributions,THE RATE PAYER,40249346,04/03/2022,200642,1920,COVID SMALL BUSINESS GRANT
Eden District Council,http://opendatacommunities.org/id/district-council/eden,Financial Services Manager,Emergency Planning and Works,Grants and contributions,EDEN VALLEY MEAT COMPANY LTD,40249605,04/03/2022,200643,1920,COVID SMALL BUSINESS GRANT
Eden District Council,http://opendatacommunities.org/id/district-council/eden,Financial Services Manager,Emergency Planning and Works,Grants and contributions,THE RATE PAYER,40249742,04/03/2022,200644,1920,COVID SMALL BUSINESS GRANT
Eden District Council,http://opendatacommunities.org/id/district-council/eden,Financial Services Manager,Emergency Planning and Works,Grants and contributions,Cumbria Health and Safety Ltd.,40250018,04/03/2022,200645,1920,COVID SMALL BUSINESS GRANT
Eden District Council,http://opendatacommunities.org/id/district-council/eden,Financial Services Manager,Emergency Planning and Works,Grants and contributions,The Hair Lounge,40253130,04/03/2022,200646,1920,COVID SMALL BUSINESS GRANT
Eden District Council,http://opendatacommunities.org/id/district-council/eden,Financial Services Manager,Emergency Planning and Works,Grants and contributions,Hesket Kennels and Cattery,40254560,04/03/2022,200647,1920,COVID SMALL BUSINESS GRANT
Eden District Council,http://opendatacommunities.org/id/district-council/eden,Financial Services Manager,Emergency Planning and Works,Grants and contributions,United colors of benetton,40254973,04/03/2022,200648,3804,COVID SMALL BUSINESS GRANT
Eden District Council,http://opendatacommunities.org/id/district-council/eden,Financial Services Manager,Emergency Planning and Works,Grants and contributions,The Cupboard Under The Stairs,40256375,04/03/2022,200649,1920,COVID SMALL BUSINESS GRANT
Eden District Council,http://opendatacommunities.org/id/district-council/eden,Financial Services Manager,Emergency Planning and Works,Grants and contributions,Beagles Farm Harvest,40256429,04/03/2022,200650,1920,COVID SMALL BUSINESS GRANT
Eden District Council,http://opendatacommunities.org/id/district-council/eden,Financial Services Manager,Emergency Planning and Works,Grants and contributions,Razzamataz Theatre Schools Penrith,42007003,04/03/2022,200654,1920,COVID SMALL BUSINESS GRANT
Eden District Council,http://opendatacommunities.org/id/district-council/eden,Financial Services Manager,Emergency Planning and Works,Grants and contributions,One Little Bird Public Relations Ltd,42007006,04/03/2022,200657,1920,COVID SMALL BUSINESS GRANT
Eden District Council,http://opendatacommunities.org/id/district-council/eden,Financial Services Manager,Emergency Planning and Works,Grants and contributions,All Weather Leisure Ltd,42007007,04/03/2022,200658,960,COVID SMALL BUSINESS GRANT
Eden District Council,http://opendatacommunities.org/id/district-council/eden,Financial Services Manager,Emergency Planning and Works,Grants and contributions,THE RATE PAYER,42007009,04/03/2022,200660,1920,COVID SMALL BUSINESS GRANT
Eden District Council,http://opendatacommunities.org/id/district-council/eden,Financial Services Manager,Emergency Planning and Works,Grants and contributions,RDF LEISURE LTD T/A SUBWAY,42007010,04/03/2022,200661,1920,COVID SMALL BUSINESS GRANT
Eden District Council,http://opendatacommunities.org/id/district-council/eden,Financial Services Manager,Emergency Planning and Works,Grants and contributions,The painted cottage,42007011,04/03/2022,200662,1920,COVID SMALL BUSINESS GRANT
Eden District Council,http://opendatacommunities.org/id/district-council/eden,Financial Services Manager,Emergency Planning and Works,Grants and contributions,THE RATE PAYER,42007013,04/03/2022,200664,960,COVID SMALL BUSINESS GRANT
Eden District Council,http://opendatacommunities.org/id/district-council/eden,Financial Services Manager,Emergency Planning and Works,Grants and contributions,THE RATE PAYER,42007015,04/03/2022,200666,960,COVID SMALL BUSINESS GRANT
Eden District Council,http://opendatacommunities.org/id/district-council/eden,Financial Services Manager,Emergency Planning and Works,Grants and contributions,THE RATE PAYER,42007016,04/03/2022,200667,960,COVID SMALL BUSINESS GRANT
Eden District Council,http://opendatacommunities.org/id/district-council/eden,Financial Services Manager,Emergency Planning and Works,Grants and contributions,CROOKABECK BED & BREAKFAST,42007017,04/03/2022,200668,960,COVID SMALL BUSINESS GRANT
Eden District Council,http://opendatacommunities.org/id/district-council/eden,Financial Services Manager,Emergency Planning and Works,Grants and contributions,THE RATE PAYER,42007018,04/03/2022,200669,960,COVID SMALL BUSINESS GRANT
Eden District Council,http://opendatacommunities.org/id/district-council/eden,Financial Services Manager,Emergency Planning and Works,Grants and contributions,THE RATE PAYER,42007019,04/03/2022,200670,960,COVID SMALL BUSINESS GRANT
Eden District Council,http://opendatacommunities.org/id/district-council/eden,Financial Services Manager,Emergency Planning and Works,Grants and contributions,THE RATE PAYER,42007021,04/03/2022,200672,960,COVID SMALL BUSINESS GRANT
Eden District Council,http://opendatacommunities.org/id/district-council/eden,Financial Services Manager,Emergency Planning and Works,Grants and contributions,North Lakes Physiotherapy,42007024,04/03/2022,200675,1920,COVID SMALL BUSINESS GRANT
Eden District Council,http://opendatacommunities.org/id/district-council/eden,Financial Services Manager,Emergency Planning and Works,Grants and contributions,Beautique hair and beauty,42007025,04/03/2022,200676,960,COVID SMALL BUSINESS GRANT
Eden District Council,http://opendatacommunities.org/id/district-council/eden,Financial Services Manager,Emergency Planning and Works,Grants and contributions,Bollam Cottage Bed and Breakfast,42007027,04/03/2022,200678,960,COVID SMALL BUSINESS GRANT
Eden District Council,http://opendatacommunities.org/id/district-council/eden,Financial Services Manager,Emergency Planning and Works,Grants and contributions,THE RATE PAYER,42007030,04/03/2022,200681,960,COVID SMALL BUSINESS GRANT
Eden District Council,http://opendatacommunities.org/id/district-council/eden,Financial Services Manager,Emergency Planning and Works,Grants and contributions,THE RATE PAYER,42007034,04/03/2022,200685,960,COVID SMALL BUSINESS GRANT
Eden District Council,http://opendatacommunities.org/id/district-council/eden,Financial Services Manager,Emergency Planning and Works,Grants and contributions,Meadow View B & B,42007036,04/03/2022,200687,960,COVID SMALL BUSINESS GRANT
Eden District Council,http://opendatacommunities.org/id/district-council/eden,Financial Services Manager,Emergency Planning and Works,Grants and contributions,THE RATE PAYER,42007040,04/03/2022,200691,960,COVID SMALL BUSINESS GRANT
Eden District Council,http://opendatacommunities.org/id/district-council/eden,Financial Services Manager,Emergency Planning and Works,Grants and contributions,The Beauty Room by Layla,42007041,04/03/2022,200692,960,COVID SMALL BUSINESS GRANT
Eden District Council,http://opendatacommunities.org/id/district-council/eden,Financial Services Manager,Emergency Planning and Works,Grants and contributions,SW Tyres & Valeting Ltd,42007042,04/03/2022,200693,1920,COVID SMALL BUSINESS GRANT
Eden District Council,http://opendatacommunities.org/id/district-council/eden,Financial Services Manager,Emergency Planning and Works,Grants and contributions,THE RATE PAYER,42007043,04/03/2022,200694,960,COVID SMALL BUSINESS GRANT
Eden District Council,http://opendatacommunities.org/id/district-council/eden,Financial Services Manager,Emergency Planning and Works,Grants and contributions,Keepers Cottage,42007044,04/03/2022,200695,960,COVID SMALL BUSINESS GRANT
Eden District Council,http://opendatacommunities.org/id/district-council/eden,Financial Services Manager,Emergency Planning and Works,Grants and contributions,Lockhome Bed and Breakfast,42007045,04/03/2022,200696,1920,COVID SMALL BUSINESS GRANT
Eden District Council,http://opendatacommunities.org/id/district-council/eden,Financial Services Manager,Emergency Planning and Works,Grants and contributions,Olive Tree Wellness Ltd,42007047,04/03/2022,200698,1920,COVID SMALL BUSINESS GRANT
Eden District Council,http://opendatacommunities.org/id/district-council/eden,Financial Services Manager,Emergency Planning and Works,Grants and contributions,THE RATE PAYER,42007048,04/03/2022,200699,960,COVID SMALL BUSINESS GRANT
Eden District Council,http://opendatacommunities.org/id/district-council/eden,Financial Services Manager,Emergency Planning and Works,Grants and contributions,Lazonby Hall,42007050,04/03/2022,200701,1920,COVID SMALL BUSINESS GRANT
Eden District Council,http://opendatacommunities.org/id/district-council/eden,Financial Services Manager,Emergency Planning and Works,Grants and contributions,Rebels Hide,42007052,04/03/2022,200703,1920,COVID SMALL BUSINESS GRANT
Eden District Council,http://opendatacommunities.org/id/district-council/eden,Financial Services Manager,Emergency Planning and Works,Grants and contributions,Nails by Abby,42007055,04/03/2022,200706,1920,COVID SMALL BUSINESS GRANT
Eden District Council,http://opendatacommunities.org/id/district-council/eden,Financial Services Manager,Emergency Planning and Works,Grants and contributions,THE RATE PAYER,42007056,04/03/2022,200707,960,COVID SMALL BUSINESS GRANT
Eden District Council,http://opendatacommunities.org/id/district-council/eden,Financial Services Manager,Emergency Planning and Works,Grants and contributions,THE RATE PAYER,42007059,04/03/2022,200710,960,COVID SMALL BUSINESS GRANT
Eden District Council,http://opendatacommunities.org/id/district-council/eden,Financial Services Manager,Emergency Planning and Works,Grants and contributions,bank house farm,42007060,04/03/2022,200711,1920,COVID SMALL BUSINESS GRANT
Eden District Council,http://opendatacommunities.org/id/district-council/eden,Financial Services Manager,Emergency Planning and Works,Grants and contributions,THE RATE PAYER,42007062,04/03/2022,200713,960,COVID SMALL BUSINESS GRANT
Eden District Council,http://opendatacommunities.org/id/district-council/eden,Financial Services Manager,Emergency Planning and Works,Grants and contributions,Stafford House,42007063,04/03/2022,200714,960,COVID SMALL BUSINESS GRANT
Eden District Council,http://opendatacommunities.org/id/district-council/eden,Financial Services Manager,Emergency Planning and Works,Grants and contributions,AlmaPhotoStudio,42007064,04/03/2022,200715,1920,COVID SMALL BUSINESS GRANT
Eden District Council,http://opendatacommunities.org/id/district-council/eden,Financial Services Manager,Emergency Planning and Works,Grants and contributions,THE RATE PAYER,42007067,04/03/2022,200718,960,COVID SMALL BUSINESS GRANT
Eden District Council,http://opendatacommunities.org/id/district-council/eden,Financial Services Manager,Emergency Planning and Works,Grants and contributions,Fletcher House B&B,42007068,04/03/2022,200719,1920,COVID SMALL BUSINESS GRANT
Eden District Council,http://opendatacommunities.org/id/district-council/eden,Financial Services Manager,Emergency Planning and Works,Grants and contributions,THE RATE PAYER,42007069,04/03/2022,200720,960,COVID SMALL BUSINESS GRANT
Eden District Council,http://opendatacommunities.org/id/district-council/eden,Financial Services Manager,Emergency Planning and Works,Grants and contributions,Woggle Goggle Swimming School,42007071,04/03/2022,200722,1920,COVID SMALL BUSINESS GRANT
Eden District Council,http://opendatacommunities.org/id/district-council/eden,Financial Services Manager,Emergency Planning and Works,Grants and contributions,THE RATE PAYER,42007073,04/03/2022,200724,960,COVID SMALL BUSINESS GRANT
Eden District Council,http://opendatacommunities.org/id/district-council/eden,Financial Services Manager,Emergency Planning and Works,Grants and contributions,THE RATE PAYER,42007076,04/03/2022,200727,960,COVID SMALL BUSINESS GRANT
Eden District Council,http://opendatacommunities.org/id/district-council/eden,Financial Services Manager,Emergency Planning and Works,Grants and contributions,TTJ Auto Assistance Ltd,42007077,04/03/2022,200728,1920,COVID SMALL BUSINESS GRANT
Eden District Council,http://opendatacommunities.org/id/district-council/eden,Financial Services Manager,Emergency Planning and Works,Grants and contributions,Polished Nails & Beauty,42007078,04/03/2022,200729,960,COVID SMALL BUSINESS GRANT
Eden District Council,http://opendatacommunities.org/id/district-council/eden,Financial Services Manager,Emergency Planning and Works,Grants and contributions,Sculpt Personal Training,42007081,04/03/2022,200732,1920,COVID SMALL BUSINESS GRANT
Eden District Council,http://opendatacommunities.org/id/district-council/eden,Financial Services Manager,Emergency Planning and Works,Grants and contributions,The Station Cafe @ Alston Ltd,42007082,04/03/2022,200733,1920,COVID SMALL BUSINESS GRANT
Eden District Council,http://opendatacommunities.org/id/district-council/eden,Financial Services Manager,Emergency Planning and Works,Grants and contributions,THE RATE PAYER,42007086,04/03/2022,200737,960,COVID SMALL BUSINESS GRANT
Eden District Council,http://opendatacommunities.org/id/district-council/eden,Financial Services Manager,Emergency Planning and Works,Grants and contributions,Once upon A Time Bookshop,42007091,04/03/2022,200742,960,COVID SMALL BUSINESS GRANT
Eden District Council,http://opendatacommunities.org/id/district-council/eden,Financial Services Manager,Emergency Planning and Works,Grants and contributions,THE RATE PAYER,42007093,04/03/2022,200744,960,COVID SMALL BUSINESS GRANT
Eden District Council,http://opendatacommunities.org/id/district-council/eden,Financial Services Manager,Emergency Planning and Works,Grants and contributions,THE RATE PAYER,42007096,04/03/2022,200747,960,COVID SMALL BUSINESS GRANT
Eden District Council,http://opendatacommunities.org/id/district-council/eden,Financial Services Manager,Emergency Planning and Works,Grants and contributions,THE RATE PAYER,42007100,04/03/2022,200751,960,COVID SMALL BUSINESS GRANT
Eden District Council,http://opendatacommunities.org/id/district-council/eden,Financial Services Manager,Emergency Planning and Works,Grants and contributions,Smithy Cottage B & B,42007103,04/03/2022,200754,960,COVID SMALL BUSINESS GRANT
Eden District Council,http://opendatacommunities.org/id/district-council/eden,Financial Services Manager,Emergency Planning and Works,Grants and contributions,THE RATE PAYER,42007104,04/03/2022,200755,960,COVID SMALL BUSINESS GRANT
Eden District Council,http://opendatacommunities.org/id/district-council/eden,Financial Services Manager,Emergency Planning and Works,Grants and contributions,THE RATE PAYER,42007109,04/03/2022,200760,960,COVID SMALL BUSINESS GRANT
Eden District Council,http://opendatacommunities.org/id/district-council/eden,Financial Services Manager,Emergency Planning and Works,Grants and contributions,Blencathra Field Centre,40121943,04/03/2022,200762,6000,COVID SMALL BUSINESS GRANT
Eden District Council,http://opendatacommunities.org/id/district-council/eden,Financial Services Manager,Emergency Planning and Works,Grants and contributions, Lowbyer Manor Hotel,40220666,04/03/2022,200763,2667,COVID SMALL BUSINESS GRANT
Eden District Council,http://opendatacommunities.org/id/district-council/eden,Financial Services Manager,Emergency Planning and Works,Grants and contributions,Windmore End Farm,40256498,04/03/2022,200764,2667,COVID SMALL BUSINESS GRANT
Eden District Council,http://opendatacommunities.org/id/district-council/eden,Financial Services Manager,Emergency Planning and Works,Grants and contributions,Stone Carrs Ltd,40253185,04/03/2022,200765,2667,COVID SMALL BUSINESS GRANT
Eden District Council,http://opendatacommunities.org/id/district-council/eden,Financial Services Manager,Emergency Planning and Works,Grants and contributions,THE RATE PAYER,40252069,04/03/2022,200766,2667,COVID SMALL BUSINESS GRANT
Eden District Council,http://opendatacommunities.org/id/district-council/eden,Financial Services Manager,Emergency Planning and Works,Grants and contributions,Kaber Village Hall Trust,40247708,04/03/2022,200767,2667,COVID SMALL BUSINESS GRANT
Eden District Council,http://opendatacommunities.org/id/district-council/eden,Financial Services Manager,Emergency Planning and Works,Grants and contributions,The Top Cafe,40213668,04/03/2022,200768,2667,COVID SMALL BUSINESS GRANT
Eden District Council,http://opendatacommunities.org/id/district-council/eden,Financial Services Manager,Emergency Planning and Works,Grants and contributions,The Outfitters Cafe Bar,40246415,04/03/2022,200769,2667,COVID SMALL BUSINESS GRANT
Eden District Council,http://opendatacommunities.org/id/district-council/eden,Financial Services Manager,Emergency Planning and Works,Grants and contributions,THE RATE PAYER,40256887,04/03/2022,200770,2667,COVID SMALL BUSINESS GRANT
Eden District Council,http://opendatacommunities.org/id/district-council/eden,Financial Services Manager,Emergency Planning and Works,Grants and contributions,Board And Elbow Ltd,40256870,04/03/2022,200771,4000,COVID SMALL BUSINESS GRANT
Eden District Council,http://opendatacommunities.org/id/district-council/eden,Financial Services Manager,Emergency Planning and Works,Grants and contributions,THE RATE PAYER,40252861,04/03/2022,200772,2667,COVID SMALL BUSINESS GRANT
Eden District Council,http://opendatacommunities.org/id/district-council/eden,Financial Services Manager,Emergency Planning and Works,Grants and contributions,THE RATE PAYER,40244310,04/03/2022,200773,2667,COVID SMALL BUSINESS GRANT
Eden District Council,http://opendatacommunities.org/id/district-council/eden,Financial Services Manager,Emergency Planning and Works,Grants and contributions,THE RATE PAYER,40246880,04/03/2022,200774,2667,COVID SMALL BUSINESS GRANT
Eden District Council,http://opendatacommunities.org/id/district-council/eden,Financial Services Manager,Emergency Planning and Works,Grants and contributions,THE RATE PAYER,40246897,04/03/2022,200775,2667,COVID SMALL BUSINESS GRANT
Eden District Council,http://opendatacommunities.org/id/district-council/eden,Financial Services Manager,Emergency Planning and Works,Grants and contributions,THE RATE PAYER,40253314,04/03/2022,200776,2667,COVID SMALL BUSINESS GRANT
Eden District Council,http://opendatacommunities.org/id/district-council/eden,Financial Services Manager,Emergency Planning and Works,Grants and contributions,THE RATE PAYER,40254034,04/03/2022,200777,2667,COVID SMALL BUSINESS GRANT
Eden District Council,http://opendatacommunities.org/id/district-council/eden,Financial Services Manager,Emergency Planning and Works,Grants and contributions,THE RATE PAYER,40250087,04/03/2022,200778,2667,COVID SMALL BUSINESS GRANT
Eden District Council,http://opendatacommunities.org/id/district-council/eden,Financial Services Manager,Emergency Planning and Works,Grants and contributions,Clarice Carr & Company Ltd,40254317,04/03/2022,200779,2667,COVID SMALL BUSINESS GRANT
Eden District Council,http://opendatacommunities.org/id/district-council/eden,Financial Services Manager,Emergency Planning and Works,Grants and contributions,ASSURED REST HOTELS LTD,40169822,04/03/2022,200780,6000,COVID SMALL BUSINESS GRANT
Eden District Council,http://opendatacommunities.org/id/district-council/eden,Financial Services Manager,Emergency Planning and Works,Grants and contributions,THE RATE PAYER,40229519,04/03/2022,200781,2667,COVID SMALL BUSINESS GRANT
Eden District Council,http://opendatacommunities.org/id/district-council/eden,Financial Services Manager,Emergency Planning and Works,Grants and contributions,THE RATE PAYER,40229267,04/03/2022,200782,2667,COVID SMALL BUSINESS GRANT
Eden District Council,http://opendatacommunities.org/id/district-council/eden,Financial Services Manager,Emergency Planning and Works,Grants and contributions,The AnnexeGarrigill house.,40249681,04/03/2022,200783,2667,COVID SMALL BUSINESS GRANT
Eden District Council,http://opendatacommunities.org/id/district-council/eden,Financial Services Manager,Emergency Planning and Works,Grants and contributions,4Eden,40246798,04/03/2022,200784,2667,COVID SMALL BUSINESS GRANT
Eden District Council,http://opendatacommunities.org/id/district-council/eden,Financial Services Manager,Emergency Planning and Works,Grants and contributions,ROCK HOUSE,40253208,04/03/2022,200785,2667,COVID SMALL BUSINESS GRANT
Eden District Council,http://opendatacommunities.org/id/district-council/eden,Financial Services Manager,Emergency Planning and Works,Grants and contributions,Cranmer Cottage,40253284,04/03/2022,200786,2667,COVID SMALL BUSINESS GRANT
Eden District Council,http://opendatacommunities.org/id/district-council/eden,Financial Services Manager,Emergency Planning and Works,Grants and contributions,THE RATE PAYER,40252649,04/03/2022,200787,2667,COVID SMALL BUSINESS GRANT
Eden District Council,http://opendatacommunities.org/id/district-council/eden,Financial Services Manager,Emergency Planning and Works,Grants and contributions,Newbiggin Village Hall Committee,40190581,04/03/2022,200788,2667,COVID SMALL BUSINESS GRANT
Eden District Council,http://opendatacommunities.org/id/district-council/eden,Financial Services Manager,Emergency Planning and Works,Grants and contributions,Country Village Inns,40254782,04/03/2022,200789,4000,COVID SMALL BUSINESS GRANT
Eden District Council,http://opendatacommunities.org/id/district-council/eden,Financial Services Manager,Emergency Planning and Works,Grants and contributions,THE RATE PAYER,40254874,04/03/2022,200790,2667,COVID SMALL BUSINESS GRANT
Eden District Council,http://opendatacommunities.org/id/district-council/eden,Financial Services Manager,Emergency Planning and Works,Grants and contributions,Cross Keys,40253222,04/03/2022,200791,4000,COVID SMALL BUSINESS GRANT
Eden District Council,http://opendatacommunities.org/id/district-council/eden,Financial Services Manager,Emergency Planning and Works,Grants and contributions,Seasons Holidays Plc,40253581,04/03/2022,200792,2667,COVID SMALL BUSINESS GRANT
Eden District Council,http://opendatacommunities.org/id/district-council/eden,Financial Services Manager,Emergency Planning and Works,Grants and contributions,THE RATE PAYER,40252885,04/03/2022,200793,2667,COVID SMALL BUSINESS GRANT
Eden District Council,http://opendatacommunities.org/id/district-council/eden,Financial Services Manager,Emergency Planning and Works,Grants and contributions,THE RATE PAYER,40252656,04/03/2022,200794,2667,COVID SMALL BUSINESS GRANT
Eden District Council,http://opendatacommunities.org/id/district-council/eden,Financial Services Manager,Emergency Planning and Works,Grants and contributions,Appleby-in-Westmorland Scout Group,40031613,04/03/2022,200795,2667,COVID SMALL BUSINESS GRANT
Eden District Council,http://opendatacommunities.org/id/district-council/eden,Financial Services Manager,Emergency Planning and Works,Grants and contributions,PadCo Pads Limited,40254287,04/03/2022,200796,2667,COVID SMALL BUSINESS GRANT
Eden District Council,http://opendatacommunities.org/id/district-council/eden,Financial Services Manager,Emergency Planning and Works,Grants and contributions,THE RATE PAYER,40254324,04/03/2022,200797,2667,COVID SMALL BUSINESS GRANT
Eden District Council,http://opendatacommunities.org/id/district-council/eden,Financial Services Manager,Emergency Planning and Works,Grants and contributions,Beck Cottage,40249889,04/03/2022,200798,2667,COVID SMALL BUSINESS GRANT
Eden District Council,http://opendatacommunities.org/id/district-council/eden,Financial Services Manager,Emergency Planning and Works,Grants and contributions,THE RATE PAYER,40176431,04/03/2022,200799,2667,COVID SMALL BUSINESS GRANT
Eden District Council,http://opendatacommunities.org/id/district-council/eden,Financial Services Manager,Emergency Planning and Works,Grants and contributions, THEGREEN CUMBRIA,40252526,04/03/2022,200800,2667,COVID SMALL BUSINESS GRANT
Eden District Council,http://opendatacommunities.org/id/district-council/eden,Financial Services Manager,Emergency Planning and Works,Grants and contributions,THE RATE PAYER,40250230,04/03/2022,200801,2667,COVID SMALL BUSINESS GRANT
Eden District Council,http://opendatacommunities.org/id/district-council/eden,Financial Services Manager,Emergency Planning and Works,Grants and contributions,THE RATE PAYER,40221003,04/03/2022,200802,2667,COVID SMALL BUSINESS GRANT
Eden District Council,http://opendatacommunities.org/id/district-council/eden,Financial Services Manager,Emergency Planning and Works,Grants and contributions,Wetheriggs united football club,40186636,04/03/2022,200803,2667,COVID SMALL BUSINESS GRANT
Eden District Council,http://opendatacommunities.org/id/district-council/eden,Financial Services Manager,Emergency Planning and Works,Grants and contributions, HiddenCornerAntiques,40145680,04/03/2022,200804,4000,COVID SMALL BUSINESS GRANT
Eden District Council,http://opendatacommunities.org/id/district-council/eden,Financial Services Manager,Emergency Planning and Works,Grants and contributions,THE RATE PAYER,40254935,04/03/2022,200805,2667,COVID SMALL BUSINESS GRANT
Eden District Council,http://opendatacommunities.org/id/district-council/eden,Financial Services Manager,Emergency Planning and Works,Grants and contributions,Angelo's,40252434,04/03/2022,200806,2667,COVID SMALL BUSINESS GRANT
Eden District Council,http://opendatacommunities.org/id/district-council/eden,Financial Services Manager,Emergency Planning and Works,Grants and contributions,THE RATE PAYER,40252571,04/03/2022,200807,2667,COVID SMALL BUSINESS GRANT
Eden District Council,http://opendatacommunities.org/id/district-council/eden,Financial Services Manager,Emergency Planning and Works,Grants and contributions,Hartsop Fold CHalet Park,40210256,04/03/2022,200808,4000,COVID SMALL BUSINESS GRANT
Eden District Council,http://opendatacommunities.org/id/district-council/eden,Financial Services Manager,Emergency Planning and Works,Grants and contributions,THE RATE PAYER,40250032,04/03/2022,200809,2667,COVID SMALL BUSINESS GRANT
Eden District Council,http://opendatacommunities.org/id/district-council/eden,Financial Services Manager,Emergency Planning and Works,Grants and contributions,Resurgam Developments Ltd,40253628,04/03/2022,200810,2667,COVID SMALL BUSINESS GRANT
Eden District Council,http://opendatacommunities.org/id/district-council/eden,Financial Services Manager,Emergency Planning and Works,Grants and contributions,Doddick Farm Holiday Cottages,40253031,04/03/2022,200811,4000,COVID SMALL BUSINESS GRANT
Eden District Council,http://opendatacommunities.org/id/district-council/eden,Financial Services Manager,Emergency Planning and Works,Grants and contributions,Doddick Farm,40251042,04/03/2022,200812,2667,COVID SMALL BUSINESS GRANT
Eden District Council,http://opendatacommunities.org/id/district-council/eden,Financial Services Manager,Emergency Planning and Works,Grants and contributions,Allison's Caf�,40254577,04/03/2022,200813,2667,COVID SMALL BUSINESS GRANT
Eden District Council,http://opendatacommunities.org/id/district-council/eden,Financial Services Manager,Emergency Planning and Works,Grants and contributions,Red Barn Cottages,40229304,04/03/2022,200814,2667,COVID SMALL BUSINESS GRANT
Eden District Council,http://opendatacommunities.org/id/district-council/eden,Financial Services Manager,Emergency Planning and Works,Grants and contributions,THE RATE PAYER,40250803,04/03/2022,200815,2667,COVID SMALL BUSINESS GRANT
Eden District Council,http://opendatacommunities.org/id/district-council/eden,Financial Services Manager,Emergency Planning and Works,Grants and contributions,Horseshoe Restaurant,40243423,04/03/2022,200816,2667,COVID SMALL BUSINESS GRANT
Eden District Council,http://opendatacommunities.org/id/district-council/eden,Financial Services Manager,Emergency Planning and Works,Grants and contributions,Tarn Outdoor Centre Ltd,40160115,04/03/2022,200817,2667,COVID SMALL BUSINESS GRANT
Eden District Council,http://opendatacommunities.org/id/district-council/eden,Financial Services Manager,Emergency Planning and Works,Grants and contributions,Armathwaite Old School Hall,40047762,04/03/2022,200818,2667,COVID SMALL BUSINESS GRANT
Eden District Council,http://opendatacommunities.org/id/district-council/eden,Financial Services Manager,Emergency Planning and Works,Grants and contributions,HAYTON PROPERTIES LTD,40221263,04/03/2022,200819,2667,COVID SMALL BUSINESS GRANT
Eden District Council,http://opendatacommunities.org/id/district-council/eden,Financial Services Manager,Emergency Planning and Works,Grants and contributions,Fell Bars Ltd,40242680,04/03/2022,200820,2667,COVID SMALL BUSINESS GRANT
Eden District Council,http://opendatacommunities.org/id/district-council/eden,Financial Services Manager,Emergency Planning and Works,Grants and contributions,Tarzania Ltd,40189239,04/03/2022,200821,4000,COVID SMALL BUSINESS GRANT
Eden District Council,http://opendatacommunities.org/id/district-council/eden,Financial Services Manager,Emergency Planning and Works,Grants and contributions,THE RATE PAYER,40182528,04/03/2022,200822,2667,COVID SMALL BUSINESS GRANT
Eden District Council,http://opendatacommunities.org/id/district-council/eden,Financial Services Manager,Emergency Planning and Works,Grants and contributions,EDEN VALLEY RAILWAY TRUST LTD,40163961,04/03/2022,200823,2667,COVID SMALL BUSINESS GRANT
Eden District Council,http://opendatacommunities.org/id/district-council/eden,Financial Services Manager,Emergency Planning and Works,Grants and contributions,THE RATE PAYER,40241618,04/03/2022,200824,2667,COVID SMALL BUSINESS GRANT
Eden District Council,http://opendatacommunities.org/id/district-council/eden,Financial Services Manager,Emergency Planning and Works,Grants and contributions,THE RATE PAYER,40209508,04/03/2022,200825,2667,COVID SMALL BUSINESS GRANT
Eden District Council,http://opendatacommunities.org/id/district-council/eden,Financial Services Manager,Emergency Planning and Works,Grants and contributions,Penrith Conservative Club,40039716,04/03/2022,200826,2667,COVID SMALL BUSINESS GRANT
Eden District Council,http://opendatacommunities.org/id/district-council/eden,Financial Services Manager,Emergency Planning and Works,Grants and contributions,Ullswater view limited FAO gowbarrow lodge,40165172,04/03/2022,200827,2667,COVID SMALL BUSINESS GRANT
Eden District Council,http://opendatacommunities.org/id/district-council/eden,Financial Services Manager,Emergency Planning and Works,Grants and contributions,THE RATE PAYER,40236913,04/03/2022,200828,2667,COVID SMALL BUSINESS GRANT
Eden District Council,http://opendatacommunities.org/id/district-council/eden,Financial Services Manager,Emergency Planning and Works,Grants and contributions,THE RATE PAYER,40200105,04/03/2022,200829,4000,COVID SMALL BUSINESS GRANT
Eden District Council,http://opendatacommunities.org/id/district-council/eden,Financial Services Manager,Emergency Planning and Works,Grants and contributions,Appleby Castle Limited,40221553,04/03/2022,200830,2667,COVID SMALL BUSINESS GRANT
Eden District Council,http://opendatacommunities.org/id/district-council/eden,Financial Services Manager,Emergency Planning and Works,Grants and contributions,The Warehouse,40143394,04/03/2022,200831,4000,COVID SMALL BUSINESS GRANT
Eden District Council,http://opendatacommunities.org/id/district-council/eden,Financial Services Manager,Emergency Planning and Works,Grants and contributions,The Lounge,40256252,04/03/2022,200832,6000,COVID SMALL BUSINESS GRANT
Eden District Council,http://opendatacommunities.org/id/district-council/eden,Financial Services Manager,Emergency Planning and Works,Grants and contributions,Rose Farm House,40236944,04/03/2022,200833,2667,COVID SMALL BUSINESS GRANT
Eden District Council,http://opendatacommunities.org/id/district-council/eden,Financial Services Manager,Emergency Planning and Works,Grants and contributions,Upfront Tearoom GallerySelf Catering Holiday Let,40238230,04/03/2022,200834,2667,COVID SMALL BUSINESS GRANT
Eden District Council,http://opendatacommunities.org/id/district-council/eden,Financial Services Manager,Emergency Planning and Works,Grants and contributions,Upfront Arts Ltd.,40215299,04/03/2022,200835,2667,COVID SMALL BUSINESS GRANT
Eden District Council,http://opendatacommunities.org/id/district-council/eden,Financial Services Manager,Emergency Planning and Works,Grants and contributions,Ghyll Burn Cottage Hartside Nursery Garden,40093314,04/03/2022,200836,2667,COVID SMALL BUSINESS GRANT
Eden District Council,http://opendatacommunities.org/id/district-council/eden,Financial Services Manager,Emergency Planning and Works,Grants and contributions,The Ginney Daisy Cottage & Buttercup Cottage,40242659,04/03/2022,200837,2667,COVID SMALL BUSINESS GRANT
Eden District Council,http://opendatacommunities.org/id/district-council/eden,Financial Services Manager,Emergency Planning and Works,Grants and contributions,THE RATE PAYER,40236487,04/03/2022,200838,2667,COVID SMALL BUSINESS GRANT
Eden District Council,http://opendatacommunities.org/id/district-council/eden,Financial Services Manager,Emergency Planning and Works,Grants and contributions,Holiday Cottages Barton Hall FArm,40125341,04/03/2022,200839,2667,COVID SMALL BUSINESS GRANT
Eden District Council,http://opendatacommunities.org/id/district-council/eden,Financial Services Manager,Emergency Planning and Works,Grants and contributions,The Annex Bank House,40201573,04/03/2022,200840,2667,COVID SMALL BUSINESS GRANT
Eden District Council,http://opendatacommunities.org/id/district-council/eden,Financial Services Manager,Emergency Planning and Works,Grants and contributions,THE RATE PAYER,40249599,04/03/2022,200841,2667,COVID SMALL BUSINESS GRANT
Eden District Council,http://opendatacommunities.org/id/district-council/eden,Financial Services Manager,Emergency Planning and Works,Grants and contributions,THE RATE PAYER,40251073,04/03/2022,200842,2667,COVID SMALL BUSINESS GRANT
Eden District Council,http://opendatacommunities.org/id/district-council/eden,Financial Services Manager,Emergency Planning and Works,Grants and contributions,THE MILL & FORD COTTAGE,40207939,04/03/2022,200843,2667,COVID SMALL BUSINESS GRANT
Eden District Council,http://opendatacommunities.org/id/district-council/eden,Financial Services Manager,Emergency Planning and Works,Grants and contributions,GOLDEN FLEECE INN,40187325,04/03/2022,200844,2667,COVID SMALL BUSINESS GRANT
Eden District Council,http://opendatacommunities.org/id/district-council/eden,Financial Services Manager,Emergency Planning and Works,Grants and contributions,THE RATE PAYER,40235927,04/03/2022,200845,2667,COVID SMALL BUSINESS GRANT
Eden District Council,http://opendatacommunities.org/id/district-council/eden,Financial Services Manager,Emergency Planning and Works,Grants and contributions,Millhouse Village Hall Committee,40132189,04/03/2022,200846,2667,COVID SMALL BUSINESS GRANT
Eden District Council,http://opendatacommunities.org/id/district-council/eden,Financial Services Manager,Emergency Planning and Works,Grants and contributions,JPC (Commercial Services) Ltd t/a Nenthall Farm,40257040,04/03/2022,200847,2667,COVID SMALL BUSINESS GRANT
Eden District Council,http://opendatacommunities.org/id/district-council/eden,Financial Services Manager,Emergency Planning and Works,Grants and contributions,Hudgill Rigg Caravan Park,40238919,04/03/2022,200848,4000,COVID SMALL BUSINESS GRANT
Eden District Council,http://opendatacommunities.org/id/district-council/eden,Financial Services Manager,Emergency Planning and Works,Grants and contributions,ISAACS BARN ISAACS BYRE,40200181,04/03/2022,200849,2667,COVID SMALL BUSINESS GRANT
Eden District Council,http://opendatacommunities.org/id/district-council/eden,Financial Services Manager,Emergency Planning and Works,Grants and contributions,THE RATE PAYER,40244921,04/03/2022,200850,4000,COVID SMALL BUSINESS GRANT
Eden District Council,http://opendatacommunities.org/id/district-council/eden,Financial Services Manager,Emergency Planning and Works,Grants and contributions,Glassonby Cottages,40211419,04/03/2022,200851,2667,COVID SMALL BUSINESS GRANT
Eden District Council,http://opendatacommunities.org/id/district-council/eden,Financial Services Manager,Emergency Planning and Works,Grants and contributions,Bank House Farm,40179782,04/03/2022,200852,2667,COVID SMALL BUSINESS GRANT
Eden District Council,http://opendatacommunities.org/id/district-council/eden,Financial Services Manager,Emergency Planning and Works,Grants and contributions,SKELTON MEMORIAL HALL COMMITTEE,40031453,04/03/2022,200853,2667,COVID SMALL BUSINESS GRANT
Eden District Council,http://opendatacommunities.org/id/district-council/eden,Financial Services Manager,Emergency Planning and Works,Grants and contributions,The Barn,40239103,04/03/2022,200854,4000,COVID SMALL BUSINESS GRANT
Eden District Council,http://opendatacommunities.org/id/district-council/eden,Financial Services Manager,Emergency Planning and Works,Grants and contributions,Haggs bank bunkhouse,40208970,04/03/2022,200855,2667,COVID SMALL BUSINESS GRANT
Eden District Council,http://opendatacommunities.org/id/district-council/eden,Financial Services Manager,Emergency Planning and Works,Grants and contributions,Courtyard Gallery,40220604,04/03/2022,200856,2667,COVID SMALL BUSINESS GRANT
Eden District Council,http://opendatacommunities.org/id/district-council/eden,Financial Services Manager,Emergency Planning and Works,Grants and contributions,Summer House,40247159,04/03/2022,200857,2667,COVID SMALL BUSINESS GRANT
Eden District Council,http://opendatacommunities.org/id/district-council/eden,Financial Services Manager,Emergency Planning and Works,Grants and contributions,THE RATE PAYER,40241076,04/03/2022,200858,2667,COVID SMALL BUSINESS GRANT
Eden District Council,http://opendatacommunities.org/id/district-council/eden,Financial Services Manager,Emergency Planning and Works,Grants and contributions,Hole House Farm Caravan Park,40055787,04/03/2022,200859,4000,COVID SMALL BUSINESS GRANT
Eden District Council,http://opendatacommunities.org/id/district-council/eden,Financial Services Manager,Emergency Planning and Works,Grants and contributions,George Starkey Hut Ltd,40224521,04/03/2022,200860,2667,COVID SMALL BUSINESS GRANT
Eden District Council,http://opendatacommunities.org/id/district-council/eden,Financial Services Manager,Emergency Planning and Works,Grants and contributions,Garden Cottage,40238254,04/03/2022,200861,2667,COVID SMALL BUSINESS GRANT
Eden District Council,http://opendatacommunities.org/id/district-council/eden,Financial Services Manager,Emergency Planning and Works,Grants and contributions,THE RATE PAYER,40250148,04/03/2022,200862,2667,COVID SMALL BUSINESS GRANT
Eden District Council,http://opendatacommunities.org/id/district-council/eden,Financial Services Manager,Emergency Planning and Works,Grants and contributions,Kirkby Stephen R&R Ltd,40240066,04/03/2022,200863,2667,COVID SMALL BUSINESS GRANT
Eden District Council,http://opendatacommunities.org/id/district-council/eden,Financial Services Manager,Emergency Planning and Works,Grants and contributions,Wythriver Limited,40244938,04/03/2022,200864,2667,COVID SMALL BUSINESS GRANT
Eden District Council,http://opendatacommunities.org/id/district-council/eden,Financial Services Manager,Emergency Planning and Works,Grants and contributions,THE RATE PAYER,40204718,04/03/2022,200865,2667,COVID SMALL BUSINESS GRANT
Eden District Council,http://opendatacommunities.org/id/district-council/eden,Financial Services Manager,Emergency Planning and Works,Grants and contributions,Jenny's Croft & Elk Cottage,40211426,04/03/2022,200866,2667,COVID SMALL BUSINESS GRANT
Eden District Council,http://opendatacommunities.org/id/district-council/eden,Financial Services Manager,Emergency Planning and Works,Grants and contributions,THE RATE PAYER,40147358,04/03/2022,200867,2667,COVID SMALL BUSINESS GRANT
Eden District Council,http://opendatacommunities.org/id/district-council/eden,Financial Services Manager,Emergency Planning and Works,Grants and contributions,THE RATE PAYER,40055534,04/03/2022,200868,2667,COVID SMALL BUSINESS GRANT
Eden District Council,http://opendatacommunities.org/id/district-council/eden,Financial Services Manager,Emergency Planning and Works,Grants and contributions,BROOKLANDS,40131483,04/03/2022,200869,2667,COVID SMALL BUSINESS GRANT
Eden District Council,http://opendatacommunities.org/id/district-council/eden,Financial Services Manager,Emergency Planning and Works,Grants and contributions,Unit 20,40202941,04/03/2022,200870,2667,COVID SMALL BUSINESS GRANT
Eden District Council,http://opendatacommunities.org/id/district-council/eden,Financial Services Manager,Emergency Planning and Works,Grants and contributions,Nik Alz Ltd Troutbeck Hotel,40242260,04/03/2022,200871,4000,COVID SMALL BUSINESS GRANT
Eden District Council,http://opendatacommunities.org/id/district-council/eden,Financial Services Manager,Emergency Planning and Works,Grants and contributions,Nik Alz Limited Troutbeck Mews,40242277,04/03/2022,200872,2667,COVID SMALL BUSINESS GRANT
Eden District Council,http://opendatacommunities.org/id/district-council/eden,Financial Services Manager,Emergency Planning and Works,Grants and contributions,Lowthwaite B & B,40183026,04/03/2022,200873,2667,COVID SMALL BUSINESS GRANT
Eden District Council,http://opendatacommunities.org/id/district-council/eden,Financial Services Manager,Emergency Planning and Works,Grants and contributions,THE RATE PAYER,40098579,04/03/2022,200874,4000,COVID SMALL BUSINESS GRANT
Eden District Council,http://opendatacommunities.org/id/district-council/eden,Financial Services Manager,Emergency Planning and Works,Grants and contributions,Bolton School Central Services,40235286,04/03/2022,200875,4000,COVID SMALL BUSINESS GRANT
Eden District Council,http://opendatacommunities.org/id/district-council/eden,Financial Services Manager,Emergency Planning and Works,Grants and contributions,Melmerby Hall,40139876,04/03/2022,200876,2667,COVID SMALL BUSINESS GRANT
Eden District Council,http://opendatacommunities.org/id/district-council/eden,Financial Services Manager,Emergency Planning and Works,Grants and contributions,Todd Hills Hall Farm,40238926,04/03/2022,200877,2667,COVID SMALL BUSINESS GRANT
Eden District Council,http://opendatacommunities.org/id/district-council/eden,Financial Services Manager,Emergency Planning and Works,Grants and contributions,Stag Cottage,40133502,04/03/2022,200878,2667,COVID SMALL BUSINESS GRANT
Eden District Council,http://opendatacommunities.org/id/district-council/eden,Financial Services Manager,Emergency Planning and Works,Grants and contributions,THE RATE PAYER,40226763,04/03/2022,200879,2667,COVID SMALL BUSINESS GRANT
Eden District Council,http://opendatacommunities.org/id/district-council/eden,Financial Services Manager,Emergency Planning and Works,Grants and contributions,The Institute - Penruddock Reading & Recreation Room,40054265,04/03/2022,200880,2667,COVID SMALL BUSINESS GRANT
Eden District Council,http://opendatacommunities.org/id/district-council/eden,Financial Services Manager,Emergency Planning and Works,Grants and contributions,Another Place Lakes Limited,40246958,04/03/2022,200881,6000,COVID SMALL BUSINESS GRANT
Eden District Council,http://opendatacommunities.org/id/district-council/eden,Financial Services Manager,Emergency Planning and Works,Grants and contributions,Hazel Bates Settlement c/o Fisher German,40194743,04/03/2022,200882,2667,COVID SMALL BUSINESS GRANT
Eden District Council,http://opendatacommunities.org/id/district-council/eden,Financial Services Manager,Emergency Planning and Works,Grants and contributions,THE RATE PAYER,40226077,04/03/2022,200883,2667,COVID SMALL BUSINESS GRANT
Eden District Council,http://opendatacommunities.org/id/district-council/eden,Financial Services Manager,Emergency Planning and Works,Grants and contributions,Barn End,40239523,04/03/2022,200884,2667,COVID SMALL BUSINESS GRANT
Eden District Council,http://opendatacommunities.org/id/district-council/eden,Financial Services Manager,Emergency Planning and Works,Grants and contributions,THE RATE PAYER,40209577,04/03/2022,200885,2667,COVID SMALL BUSINESS GRANT
Eden District Council,http://opendatacommunities.org/id/district-council/eden,Financial Services Manager,Emergency Planning and Works,Grants and contributions,Globe Inn,40223504,04/03/2022,200886,2667,COVID SMALL BUSINESS GRANT
Eden District Council,http://opendatacommunities.org/id/district-council/eden,Financial Services Manager,Emergency Planning and Works,Grants and contributions,Calthwaite hall Lodges,40247609,04/03/2022,200887,4000,COVID SMALL BUSINESS GRANT
Eden District Council,http://opendatacommunities.org/id/district-council/eden,Financial Services Manager,Emergency Planning and Works,Grants and contributions,Udford,40210508,04/03/2022,200888,2667,COVID SMALL BUSINESS GRANT
Eden District Council,http://opendatacommunities.org/id/district-council/eden,Financial Services Manager,Emergency Planning and Works,Grants and contributions,THE RATE PAYER,40229618,04/03/2022,200889,2667,COVID SMALL BUSINESS GRANT
Eden District Council,http://opendatacommunities.org/id/district-council/eden,Financial Services Manager,Emergency Planning and Works,Grants and contributions, Noran Bank Farm,40242413,04/03/2022,200890,2667,COVID SMALL BUSINESS GRANT
Eden District Council,http://opendatacommunities.org/id/district-council/eden,Financial Services Manager,Emergency Planning and Works,Grants and contributions,THE RATE PAYER,40219833,04/03/2022,200891,2667,COVID SMALL BUSINESS GRANT
Eden District Council,http://opendatacommunities.org/id/district-council/eden,Financial Services Manager,Emergency Planning and Works,Grants and contributions,Ravenstonedale Community & Heritage Centre,40202057,04/03/2022,200892,2667,COVID SMALL BUSINESS GRANT
Eden District Council,http://opendatacommunities.org/id/district-council/eden,Financial Services Manager,Emergency Planning and Works,Grants and contributions,Punchbowl Inn askham ltd,40219758,04/03/2022,200893,2667,COVID SMALL BUSINESS GRANT
Eden District Council,http://opendatacommunities.org/id/district-council/eden,Financial Services Manager,Emergency Planning and Works,Grants and contributions,THE RATE PAYER,40032364,04/03/2022,200894,2667,COVID SMALL BUSINESS GRANT
Eden District Council,http://opendatacommunities.org/id/district-council/eden,Financial Services Manager,Emergency Planning and Works,Grants and contributions, Tynedale Guest House,40247852,04/03/2022,200895,2667,COVID SMALL BUSINESS GRANT
Eden District Council,http://opendatacommunities.org/id/district-council/eden,Financial Services Manager,Emergency Planning and Works,Grants and contributions,THE RATE PAYER,40238957,04/03/2022,200896,2667,COVID SMALL BUSINESS GRANT
Eden District Council,http://opendatacommunities.org/id/district-council/eden,Financial Services Manager,Emergency Planning and Works,Grants and contributions,THE RATE PAYER,40250292,04/03/2022,200897,2667,COVID SMALL BUSINESS GRANT
Eden District Council,http://opendatacommunities.org/id/district-council/eden,Financial Services Manager,Emergency Planning and Works,Grants and contributions,THE RATE PAYER,40235613,04/03/2022,200898,2667,COVID SMALL BUSINESS GRANT
Eden District Council,http://opendatacommunities.org/id/district-council/eden,Financial Services Manager,Emergency Planning and Works,Grants and contributions,Hawthorn Leisure Honey Ltd,40215893,04/03/2022,200899,4000,COVID SMALL BUSINESS GRANT
Eden District Council,http://opendatacommunities.org/id/district-council/eden,Financial Services Manager,Emergency Planning and Works,Grants and contributions,Tastes of Eden,40152107,04/03/2022,200900,2667,COVID SMALL BUSINESS GRANT
Eden District Council,http://opendatacommunities.org/id/district-council/eden,Financial Services Manager,Emergency Planning and Works,Grants and contributions,Raj EXQUISITE CUISINE LTD,40243935,04/03/2022,200901,2667,COVID SMALL BUSINESS GRANT
Eden District Council,http://opendatacommunities.org/id/district-council/eden,Financial Services Manager,Emergency Planning and Works,Grants and contributions,Ice cream parlour and tearoom,40191485,04/03/2022,200902,2667,COVID SMALL BUSINESS GRANT
Eden District Council,http://opendatacommunities.org/id/district-council/eden,Financial Services Manager,Emergency Planning and Works,Grants and contributions,taste of bengal cuisine ltd,40253444,04/03/2022,200903,2667,COVID SMALL BUSINESS GRANT
Eden District Council,http://opendatacommunities.org/id/district-council/eden,Environmental Services,Homelessness,Agency Agreement,SOUTH LAKELAND DISTRICT COUNCIL,SOU006,07/03/2022,199058,17143,SHARED SLDC/EDEN HOUSING TEAM
Eden District Council,http://opendatacommunities.org/id/district-council/eden,Environmental Services,Homelessness,Agency Agreement,SOUTH LAKELAND DISTRICT COUNCIL,SOU006,07/03/2022,200101,-17143,PRIVATE RENTED SECTOR CREDIT INV 749044
Eden District Council,http://opendatacommunities.org/id/district-council/eden,Technical Services Manager,Cemeteries,Grounds Maint Contract additional works,NORTH WEST ARBORICULTURAL SERVICES LTD,NOR066,11/03/2022,200058,550,TREE WORKS ST ANDREWS
Eden District Council,http://opendatacommunities.org/id/district-council/eden,Planning Services,Planning Services,Agency Staff,VIVID RESOURCING,VIV001,11/03/2022,200062,2750,TIME SHEET WE 20.02.22 RF
Eden District Council,http://opendatacommunities.org/id/district-council/eden,Commercial Services Manager,Commercial Services,Agency Staff,VIVID RESOURCING,VIV001,11/03/2022,200066,2750,TIME SHEET WE 20.02.22 GM
Eden District Council,http://opendatacommunities.org/id/district-council/eden,Commercial Services Manager,Commercial Services,Agency Staff,VIVID RESOURCING,VIV001,11/03/2022,200072,4375,time sheet we 20.02.22 fm
Eden District Council,http://opendatacommunities.org/id/district-council/eden,Environmental Services,1996 Mandatory Renovation Grants,Capital grants,TK ACCESS SOLUTIONS LTD,THY001,11/03/2022,200078,3915,FIN PAYMENT GRANT REF 210059
Eden District Council,http://opendatacommunities.org/id/district-council/eden,Technical Services Manager,Street Cleaning,Street Cleaning Dayworks,HELPING HAND COMPANY,HEL001,11/03/2022,200079,961.2,litterpicking equipment
Eden District Council,http://opendatacommunities.org/id/district-council/eden,Human Resources Manager,Central Expenses,Advertising,CHARTERED INSTITUTE OF ENVIRONMENTAL HEALTH,CIE002,11/03/2022,200082,800,RECRUITMENT ON LINE ONLY
Eden District Council,http://opendatacommunities.org/id/district-council/eden,Technical Services Manager,Parks and Open Spaces,Play areas - maintenance,PLAYDALE PLAYGROUNDS LTD,PLA007,11/03/2022,200089,1639.66,PLAY EQUIPMENT
Eden District Council,http://opendatacommunities.org/id/district-council/eden,Human Resources Manager,Staff Development,Training Expenses,DISTRICT SURVEYORS  ASSOCIATION LIMITED,DIS001,11/03/2022,200095,720,FLOS CONFERENCE 29.3.22
Eden District Council,http://opendatacommunities.org/id/district-council/eden,Human Resources Manager,Staff Development,Grants and contributions,BUCKET  & SPADE MEDIA LTD,BUC010,11/03/2022,200099,2600,print costs visit eden guide2022
Eden District Council,http://opendatacommunities.org/id/district-council/eden,Legal Services Manager,Committee and Member Costs,Equipment hire,SOUNDSMITH LIMITED,SOU021,11/03/2022,200120,1800,SOUND EQUIP AT ROUNDTHORNE 24.02.22
Eden District Council,http://opendatacommunities.org/id/district-council/eden,Technical Services Manager,Eden Leisure Centre & Appleby Swimming P,Planned Maintenance,PUMPTRACK LTD,PUM001,11/03/2022,200138,550,SERVICE VISIT FRENCHFIELD SEWAGE PUMPS
Eden District Council,http://opendatacommunities.org/id/district-council/eden,Commercial Services Manager,Commercial Services,Agency Staff,VIVID RESOURCING,VIV001,11/03/2022,200906,4375,TIME SHEET WE 27.02.22 FM
Eden District Council,http://opendatacommunities.org/id/district-council/eden,Commercial Services Manager,Commercial Services,Agency Staff,VIVID RESOURCING,VIV001,11/03/2022,200910,2750,TIME SHEET WE GM 27.2.22
Eden District Council,http://opendatacommunities.org/id/district-council/eden,Environmental Services,1996 Mandatory Renovation Grants,Capital grants,THE EXCELLENT RAMP SYSTEM,EXE001,11/03/2022,200912,2200,FIN PAYMENT GRANT REF 210070
Eden District Council,http://opendatacommunities.org/id/district-council/eden,Environmental Services,1996 Mandatory Renovation Grants,Capital grants,HANDICARE ACCESSIBILITY LTD,FRE002,11/03/2022,200915,1795,FIN PAYMENT GRANT REF 210078
Eden District Council,http://opendatacommunities.org/id/district-council/eden,Environmental Services,1996 Mandatory Renovation Grants,Capital grants,TOP NOTCH CONTRACTORS LTD,TOP003,11/03/2022,200917,4575,FIN  PAYMENT GRANT REF 210032
Eden District Council,http://opendatacommunities.org/id/district-council/eden,Environmental Services,1996 Mandatory Renovation Grants,Capital grants,KJS ACCESS SOLUTIONS,KJS001,11/03/2022,200925,1846.73,FIN PAYMENT GRANT REF 210057
Eden District Council,http://opendatacommunities.org/id/district-council/eden,Technical Services Manager,Community Development & Engagement,Grants and contributions,THE POLICE & CRIME COMMISSIONER FOR CUMBRIA,THE006,11/03/2022,200932,6360,SARC FUNDING 21/22
Eden District Council,http://opendatacommunities.org/id/district-council/eden,Technical Services Manager,Emergency Planning and Works,Grounds Maint Contract additional works,URBASER LIMITED,URB002,11/03/2022,200938,5208.54,FRENCHFIELD GM JAN 22
Eden District Council,http://opendatacommunities.org/id/district-council/eden,Chief Executive's,Chief Executive,Agency Staff,CIPFA PENNA,CIP013,11/03/2022,200939,23600,INTERIM MANAGMENT FEB 22 IF
Eden District Council,http://opendatacommunities.org/id/district-council/eden,Information Technology Manager,Information Technology,Computer equipment,PROBRAND LIMITED,PRO008,11/03/2022,200966,921.54,SURF LAPTOP
Eden District Council,http://opendatacommunities.org/id/district-council/eden,Environmental Services,1996 Mandatory Renovation Grants,Capital grants,PPM LTD,PPM001,11/03/2022,199936,5122.5,FIN PAYMENT FRANT REF 210040
Eden District Council,http://opendatacommunities.org/id/district-council/eden,Technical Services Manager,Parks and Open Spaces,Play areas - maintenance,FENLAND LEISURE PRODUCTS LTD (ONLINE PLAYGROUNDS),FEN002,11/03/2022,199939,1080,SWING
Eden District Council,http://opendatacommunities.org/id/district-council/eden,Technical Services Manager,Parks and Open Spaces,Play areas - maintenance,FENLAND LEISURE PRODUCTS LTD (ONLINE PLAYGROUNDS),FEN002,11/03/2022,199940,2537,SWINGS
Eden District Council,http://opendatacommunities.org/id/district-council/eden,Human Resources Manager,Community Development & Engagement,Other charges for services,Tribe Culture Change,TRI009,11/03/2022,199958,3437.5,H&S AUDIT
Eden District Council,http://opendatacommunities.org/id/district-council/eden,Planning Services,Planning Services,Agency Staff,G2 RECRUITMENT SOLUTIONS,G2R001,11/03/2022,199963,516,TIME SHEET WE06.02.22 AA
Eden District Council,http://opendatacommunities.org/id/district-council/eden,Planning Services,Planning Services,Agency Staff,VIVID RESOURCING,VIV001,11/03/2022,199965,2750,TIME SHEET WE 6.2.22 RF
Eden District Council,http://opendatacommunities.org/id/district-council/eden,Commercial Services Manager,Commercial Services,Agency Staff,VIVID RESOURCING,VIV001,11/03/2022,199967,2750,TIME SHEET WE 06.2.22
Eden District Council,http://opendatacommunities.org/id/district-council/eden,Technical Services Manager,Technical Services,Agency Staff,VIVID RESOURCING,VIV001,11/03/2022,199968,1762.5,TIME SHEET WE 06.02.22 DH
Eden District Council,http://opendatacommunities.org/id/district-council/eden,Environmental Services,Environmental Services,Agency Staff,VIVID RESOURCING,VIV001,11/03/2022,199969,1110,time sheet we 06.02.22 po
Eden District Council,http://opendatacommunities.org/id/district-council/eden,Environmental Services,Environmental Services,Agency Staff,VIVID RESOURCING,VIV001,11/03/2022,199970,1130,TIME SHEET WE 06.02.22 BN
Eden District Council,http://opendatacommunities.org/id/district-council/eden,Environmental Services,1996 Mandatory Renovation Grants,Capital grants,TOP NOTCH CONTRACTORS LTD,TOP003,11/03/2022,199975,567,FIN PAYMENT GRANT REF 20056
Eden District Council,http://opendatacommunities.org/id/district-council/eden,Planning Services,Planning Services,Agency Staff,SUMMIT TOWN PLANNING LTD,SUM004,11/03/2022,200014,1558.05,planning apps and mileage
Eden District Council,http://opendatacommunities.org/id/district-council/eden,Environmental Services,Environmental Services,Agency Staff,VIVID RESOURCING,VIV001,11/03/2022,200020,1110,TIME SHEET WE 13.02.22 PO
Eden District Council,http://opendatacommunities.org/id/district-council/eden,Planning Services,Planning Services,Agency Staff,VIVID RESOURCING,VIV001,11/03/2022,200021,2750,TIME SHEET WE 13.2.22 RF
Eden District Council,http://opendatacommunities.org/id/district-council/eden,Environmental Services,Environmental Services,Agency Staff,VIVID RESOURCING,VIV001,11/03/2022,200022,1380,TIME SHEET WE 13.2.22 BN
Eden District Council,http://opendatacommunities.org/id/district-council/eden,Commercial Services Manager,Commercial Services,Agency Staff,VIVID RESOURCING,VIV001,11/03/2022,200023,2750,TIME SHEET WE 13.2.22 GM
Eden District Council,http://opendatacommunities.org/id/district-council/eden,Planning Services,Planning Services,Agency Staff,VIVID RESOURCING,VIV001,11/03/2022,200024,821.5,TIME SHEET WE 13.2.22 DM
Eden District Council,http://opendatacommunities.org/id/district-council/eden,Environmental Services,1996 Mandatory Renovation Grants,Capital grants,TOP NOTCH CONTRACTORS LTD,TOP003,11/03/2022,200037,5675,FIN PAYMENT GRANT REF 210043
Eden District Council,http://opendatacommunities.org/id/district-council/eden,Commercial Services Manager,Commercial Services,Agency Staff,REDACTED INOFRMATION,BAL010,11/03/2022,200106,3892.5,ECO DEV TEAM SUPPORT FEB22
Eden District Council,http://opendatacommunities.org/id/district-council/eden,Environmental Services,1996 Mandatory Renovation Grants,Capital grants,C W COX & SONS (KENDAL)  LTD,COX001,11/03/2022,200919,10815,FIN PAYMENT GRANT REF 210066
Eden District Council,http://opendatacommunities.org/id/district-council/eden,Corporate Services Director,Corporate Costs,Software � maintenance,CIVICA UK LTD,CIV002,11/03/2022,199808,2549.25,FASTPORTAL 15.3.22-14.03.22
Eden District Council,http://opendatacommunities.org/id/district-council/eden,Information Technology Manager,Information Technology,Software � maintenance,CIVICA UK LTD,CIV002,11/03/2022,199825,3169.49,CARTOLOGY LICENCES
Eden District Council,http://opendatacommunities.org/id/district-council/eden,Commercial Services Manager,Museum,Rental/Maintenance of Security System,CHUBB ELECTRONIC SECURITY,CHU001,11/03/2022,200031,1023.85,TIC 30.3.22-29.3.23 ALARM
Eden District Council,http://opendatacommunities.org/id/district-council/eden,Technical Services Manager,Land Charges,Professional fees,CUMBRIA COUNTY COUNCIL,CCC002,11/03/2022,200052,922,HIGHWAY SEARCHES JAN22
Eden District Council,http://opendatacommunities.org/id/district-council/eden,Commercial Services Manager,Economic Development and Promotion,Grants and contributions,G BOWMAN BUILDING CONTRACTORS LTD,BOW014,11/03/2022,200059,1000,FINAL APPRENTICE PAYMENT CT
Eden District Council,http://opendatacommunities.org/id/district-council/eden,Commercial Services Manager,Economic Development and Promotion,Grants and contributions,G BOWMAN BUILDING CONTRACTORS LTD,BOW014,11/03/2022,200098,500,2nd apprentice payment jb
Eden District Council,http://opendatacommunities.org/id/district-council/eden,Environmental Services,Water Sampling,Professional fees,CATG LIMITED,CAT008,11/03/2022,200105,1107,PRIVATE WATER SAMPLING
Eden District Council,http://opendatacommunities.org/id/district-council/eden,Corporate Services Manager,Corporate Services,Alston Info Centre Cleaning to Recharge,ALSTON TOWN HALL TRUSTEES,ALS003,11/03/2022,200119,2067.62,RENTAL LOCAL LONKS JAN-MAR 22
Eden District Council,http://opendatacommunities.org/id/district-council/eden,Environmental Services,Housing Standards,Professional fees,BOLTON AT HOME,BOL010,11/03/2022,200121,500,CONTRIBUTION NW HOUSING FORUM 2021-22
Eden District Council,http://opendatacommunities.org/id/district-council/eden,Commercial Services Manager,Penrith TIC Trading Account,Publications,CARDS FOR GOOD CAUSES LIMITED,CAR027,11/03/2022,200930,1151.16,CARDS SALES
Eden District Council,http://opendatacommunities.org/id/district-council/eden,Information Technology Manager,Information Technology,Printers Contract,Konica Minolta Business Solutions UK Limited,KON003,11/03/2022,199772,1343.2,BIZHUB 1.10.21-31.12.21
Eden District Council,http://opendatacommunities.org/id/district-council/eden,Information Technology Manager,Information Technology,IT Contracts & Maintenance,IT PROFESSIONAL SERVICES LTD,ITP001,11/03/2022,199790,2000,500MBPS ONWARD INTERNET
Eden District Council,http://opendatacommunities.org/id/district-council/eden,Financial Services Manager,Financial Services,Software � maintenance,TOTALMOBILE LTD,CON001,11/03/2022,200053,40200,ANNUAL SUPPORT CHARGE 1.4.22-31.3.23
Eden District Council,http://opendatacommunities.org/id/district-council/eden,Technical Services Manager,Recycling,material price fluctuations,CUMBRIA WASTE RECYCLING LTD,CUM022,11/03/2022,200085,780.36,CERT BS-F-90 2021/22
Eden District Council,http://opendatacommunities.org/id/district-council/eden,Technical Services Manager,Recycling,Recycling  - Bring Sites,CUMBRIA WASTE RECYCLING LTD,CUM022,11/03/2022,200086,7266.28,CERT BS-113
Eden District Council,http://opendatacommunities.org/id/district-council/eden,Technical Services Manager,Recycling,Recycling - Bag & Box,CUMBRIA WASTE RECYCLING LTD,CUM022,11/03/2022,200087,31761.77,CERT GB-34-2021/22
Eden District Council,http://opendatacommunities.org/id/district-council/eden,Technical Services Manager,Land Management,Building works,Glaisyers ETL Global,GLA011,11/03/2022,200097,1312.5,PRO FEES 5.1.22-16.2.22
Eden District Council,http://opendatacommunities.org/id/district-council/eden,Financial Services Manager,Insurance,Insurance,MARSH LTD,MAR046,11/03/2022,200103,62676.21,INSURANCE 31.1.22-31.3.23
Eden District Council,http://opendatacommunities.org/id/district-council/eden,Commercial Services Manager,Economic Development and Promotion,Grants and contributions,LARCH COTTAGE NURSERY,LAR004,11/03/2022,200127,500,1ST APPRENTICE PAYMENT RW
Eden District Council,http://opendatacommunities.org/id/district-council/eden,Transformation & Customers Head of,Emergency Planning and Works,Advertising,BARRNON MEDIA LTD,CUM001,11/03/2022,200134,500,COVID AD 26.02.22
Eden District Council,http://opendatacommunities.org/id/district-council/eden,Financial Services Manager,Insurance,Insurance,MARSH LTD,MAR046,11/03/2022,200949,1647.6,INSURANCE 31.2.22-31.3.23
Eden District Council,http://opendatacommunities.org/id/district-council/eden,Financial Services Manager,Insurance,Insurance,MARSH LTD,MAR046,11/03/2022,200950,978.1,INSRANCE 31.1.22-31.2.23
Eden District Council,http://opendatacommunities.org/id/district-council/eden,Financial Services Manager,Insurance,Insurance,MARSH LTD,MAR046,11/03/2022,200959,38409.57,COMMERCIAL COMB INSURANCE 31.1.22-31.323
Eden District Council,http://opendatacommunities.org/id/district-council/eden,Environmental Services,Pest Control,Pest Control,RENTOKIL INITIAL PEST CONTROL,REN009,11/03/2022,199990,1094.32,pests misc 1.3.22-31.3.22
Eden District Council,http://opendatacommunities.org/id/district-council/eden,Information Technology Manager,Information Technology,Shared IT Services,SOUTH LAKELAND DISTRICT COUNCIL,SOU006,11/03/2022,200108,78783.84,IT SHARED SERVICES
Eden District Council,http://opendatacommunities.org/id/district-council/eden,Technical Services Manager,Public Conveniences,Window cleaning,URBASER LIMITED,URB002,11/03/2022,199747,13179.86,BUILDING CLEANING JAN 22
Eden District Council,http://opendatacommunities.org/id/district-council/eden,Environmental Services,Environmental Services,Agency Staff,VIVID RESOURCING,VIV001,11/03/2022,200063,1086.9,TIME SHEET WE 20.02.22 PO
Eden District Council,http://opendatacommunities.org/id/district-council/eden,Commercial Services Manager,Economic Development and Promotion,Professional fees,WE ARE TEAM LTD,WEA007,11/03/2022,200928,4000,arts&culture qtr 4
Eden District Council,http://opendatacommunities.org/id/district-council/eden,Technical Services Manager,Public Conveniences,Window cleaning,URBASER LIMITED,URB002,11/03/2022,200954,13179.86,BUILDING CLEANING FEB 22
Eden District Council,http://opendatacommunities.org/id/district-council/eden,Technical Services Manager,Land Management,Building works,Collinson Construction Ltd,COL033,11/03/2022,200951,55939,INVOICE 3 PCSA AGREEMENT
Eden District Council,http://opendatacommunities.org/id/district-council/eden,Technical Services Manager,Land Management,Building works,Collinson Construction Ltd,COL033,11/03/2022,200953,76944.4,INVOICE 4 PCSA AGREEMENT
Eden District Council,http://opendatacommunities.org/id/district-council/eden,Technical Services Manager,Land Management,Building works,Collinson Construction Ltd,COL033,11/03/2022,200978,965200,main contract works inv 1
Eden District Council,http://opendatacommunities.org/id/district-council/eden,Financial Services Manager,Emergency Planning and Works,Grants and contributions,KJM Leisure Limited,40250841,14/03/2022,201097,2667,COVID SMALL BUSINESS GRANT
Eden District Council,http://opendatacommunities.org/id/district-council/eden,Financial Services Manager,Emergency Planning and Works,Grants and contributions,Acorn Guest House,40230199,14/03/2022,201098,2667,COVID SMALL BUSINESS GRANT
Eden District Council,http://opendatacommunities.org/id/district-council/eden,Financial Services Manager,Emergency Planning and Works,Grants and contributions,The Crown Inn Main Street Shap Penrith CA10 3NL,40237824,14/03/2022,201099,2667,COVID SMALL BUSINESS GRANT
Eden District Council,http://opendatacommunities.org/id/district-council/eden,Financial Services Manager,Emergency Planning and Works,Grants and contributions,Lacet Cottage,40230151,14/03/2022,201100,2667,COVID SMALL BUSINESS GRANT
Eden District Council,http://opendatacommunities.org/id/district-council/eden,Financial Services Manager,Emergency Planning and Works,Grants and contributions,Choice Hotels Limited,40135607,14/03/2022,201101,6000,COVID SMALL BUSINESS GRANT
Eden District Council,http://opendatacommunities.org/id/district-council/eden,Financial Services Manager,Emergency Planning and Works,Grants and contributions,Happy Hooves Riding Centre,40218922,14/03/2022,201102,2667,COVID SMALL BUSINESS GRANT
Eden District Council,http://opendatacommunities.org/id/district-council/eden,Financial Services Manager,Emergency Planning and Works,Grants and contributions,Blue Moon Hospitality Management Services Ltd,40256542,14/03/2022,201103,2667,COVID SMALL BUSINESS GRANT
Eden District Council,http://opendatacommunities.org/id/district-council/eden,Financial Services Manager,Emergency Planning and Works,Grants and contributions,Penrith Parish Centre Limited,40037437,14/03/2022,201104,2667,COVID SMALL BUSINESS GRANT
Eden District Council,http://opendatacommunities.org/id/district-council/eden,Financial Services Manager,Emergency Planning and Works,Grants and contributions,Penrith Cricket Sports & Social Club,40052580,14/03/2022,201105,2667,COVID SMALL BUSINESS GRANT
Eden District Council,http://opendatacommunities.org/id/district-council/eden,Financial Services Manager,Emergency Planning and Works,Grants and contributions,THE RATE PAYER,40217462,14/03/2022,201106,2667,COVID SMALL BUSINESS GRANT
Eden District Council,http://opendatacommunities.org/id/district-council/eden,Financial Services Manager,Emergency Planning and Works,Grants and contributions,THE RATE PAYER,40251196,14/03/2022,201107,2667,COVID SMALL BUSINESS GRANT
Eden District Council,http://opendatacommunities.org/id/district-council/eden,Financial Services Manager,Emergency Planning and Works,Grants and contributions,THE RATE PAYER,40257507,14/03/2022,201108,4000,COVID SMALL BUSINESS GRANT
Eden District Council,http://opendatacommunities.org/id/district-council/eden,Financial Services Manager,Emergency Planning and Works,Grants and contributions,black bull inn,40253123,14/03/2022,201109,2667,COVID SMALL BUSINESS GRANT
Eden District Council,http://opendatacommunities.org/id/district-council/eden,Financial Services Manager,Emergency Planning and Works,Grants and contributions,Westmorland Ltd,40135799,14/03/2022,201110,6000,COVID SMALL BUSINESS GRANT
Eden District Council,http://opendatacommunities.org/id/district-council/eden,Financial Services Manager,Emergency Planning and Works,Grants and contributions,Westmorland Limited,40103204,14/03/2022,201111,6000,COVID SMALL BUSINESS GRANT
Eden District Council,http://opendatacommunities.org/id/district-council/eden,Financial Services Manager,Emergency Planning and Works,Grants and contributions,Westmorland Ltd,40036304,14/03/2022,201112,6000,COVID SMALL BUSINESS GRANT
Eden District Council,http://opendatacommunities.org/id/district-council/eden,Financial Services Manager,Emergency Planning and Works,Grants and contributions,Westmorland Hotel,40048802,14/03/2022,201113,6000,COVID SMALL BUSINESS GRANT
Eden District Council,http://opendatacommunities.org/id/district-council/eden,Financial Services Manager,Emergency Planning and Works,Grants and contributions,Rheged Discovery Centre,40204480,14/03/2022,201114,6000,COVID SMALL BUSINESS GRANT
Eden District Council,http://opendatacommunities.org/id/district-council/eden,Financial Services Manager,Emergency Planning and Works,Grants and contributions,Big Bear Property Management,40245092,14/03/2022,201115,2667,COVID SMALL BUSINESS GRANT
Eden District Council,http://opendatacommunities.org/id/district-council/eden,Financial Services Manager,Emergency Planning and Works,Grants and contributions,THE RATE PAYER,40243812,14/03/2022,201116,2667,COVID SMALL BUSINESS GRANT
Eden District Council,http://opendatacommunities.org/id/district-council/eden,Financial Services Manager,Emergency Planning and Works,Grants and contributions,Ona Ash,40252120,14/03/2022,201117,2667,COVID SMALL BUSINESS GRANT
Eden District Council,http://opendatacommunities.org/id/district-council/eden,Financial Services Manager,Emergency Planning and Works,Grants and contributions,Ecostay Ltd.,40200815,14/03/2022,201118,2667,COVID SMALL BUSINESS GRANT
Eden District Council,http://opendatacommunities.org/id/district-council/eden,Financial Services Manager,Emergency Planning and Works,Grants and contributions,High Beckside,40256948,14/03/2022,201119,2667,COVID SMALL BUSINESS GRANT
Eden District Council,http://opendatacommunities.org/id/district-council/eden,Financial Services Manager,Emergency Planning and Works,Grants and contributions,Temple Croft B&B,40247685,14/03/2022,201120,2667,COVID SMALL BUSINESS GRANT
Eden District Council,http://opendatacommunities.org/id/district-council/eden,Financial Services Manager,Emergency Planning and Works,Grants and contributions,Bella cottage,40256740,14/03/2022,201121,2667,COVID SMALL BUSINESS GRANT
Eden District Council,http://opendatacommunities.org/id/district-council/eden,Financial Services Manager,Emergency Planning and Works,Grants and contributions,THE RATE PAYER,40216216,14/03/2022,201122,2667,COVID SMALL BUSINESS GRANT
Eden District Council,http://opendatacommunities.org/id/district-council/eden,Financial Services Manager,Emergency Planning and Works,Grants and contributions,THE RATE PAYER,40183071,14/03/2022,201123,2667,COVID SMALL BUSINESS GRANT
Eden District Council,http://opendatacommunities.org/id/district-council/eden,Financial Services Manager,Emergency Planning and Works,Grants and contributions,Melmerby Estates Limited,40219093,14/03/2022,201124,2667,COVID SMALL BUSINESS GRANT
Eden District Council,http://opendatacommunities.org/id/district-council/eden,Financial Services Manager,Emergency Planning and Works,Grants and contributions,Level 5 Strategies Ltd,40256320,14/03/2022,201125,2667,COVID SMALL BUSINESS GRANT
Eden District Council,http://opendatacommunities.org/id/district-council/eden,Financial Services Manager,Emergency Planning and Works,Grants and contributions,THE RATE PAYER,40257057,14/03/2022,201126,2667,COVID SMALL BUSINESS GRANT
Eden District Council,http://opendatacommunities.org/id/district-council/eden,Financial Services Manager,Emergency Planning and Works,Grants and contributions,Toddles Barn,40219116,14/03/2022,201127,2667,COVID SMALL BUSINESS GRANT
Eden District Council,http://opendatacommunities.org/id/district-council/eden,Financial Services Manager,Emergency Planning and Works,Grants and contributions,THE RATE PAYER,40254041,14/03/2022,201128,2667,COVID SMALL BUSINESS GRANT
Eden District Council,http://opendatacommunities.org/id/district-council/eden,Financial Services Manager,Emergency Planning and Works,Grants and contributions,Rookin House Activity Centre Ltd,40028501,14/03/2022,201129,4000,COVID SMALL BUSINESS GRANT
Eden District Council,http://opendatacommunities.org/id/district-council/eden,Financial Services Manager,Emergency Planning and Works,Grants and contributions,THE RATE PAYER,40208826,14/03/2022,201130,2667,COVID SMALL BUSINESS GRANT
Eden District Council,http://opendatacommunities.org/id/district-council/eden,Financial Services Manager,Emergency Planning and Works,Grants and contributions,Old School House,40235934,14/03/2022,201131,2667,COVID SMALL BUSINESS GRANT
Eden District Council,http://opendatacommunities.org/id/district-council/eden,Financial Services Manager,Emergency Planning and Works,Grants and contributions,Westwood Barn Properties Ltd,40235842,14/03/2022,201132,2667,COVID SMALL BUSINESS GRANT
Eden District Council,http://opendatacommunities.org/id/district-council/eden,Financial Services Manager,Emergency Planning and Works,Grants and contributions,THE RATE PAYER,40251905,14/03/2022,201133,2667,COVID SMALL BUSINESS GRANT
Eden District Council,http://opendatacommunities.org/id/district-council/eden,Financial Services Manager,Emergency Planning and Works,Grants and contributions,HPK Group Ltd,40256214,14/03/2022,201134,2667,COVID SMALL BUSINESS GRANT
Eden District Council,http://opendatacommunities.org/id/district-council/eden,Financial Services Manager,Emergency Planning and Works,Grants and contributions,moto hospitality ltd,40163749,14/03/2022,201135,6000,COVID SMALL BUSINESS GRANT
Eden District Council,http://opendatacommunities.org/id/district-council/eden,Financial Services Manager,Emergency Planning and Works,Grants and contributions,THE RATE PAYER,40163329,14/03/2022,201136,2667,COVID SMALL BUSINESS GRANT
Eden District Council,http://opendatacommunities.org/id/district-council/eden,Financial Services Manager,Emergency Planning and Works,Grants and contributions,Low Hesket Village Hall,40049195,14/03/2022,201137,2667,COVID SMALL BUSINESS GRANT
Eden District Council,http://opendatacommunities.org/id/district-council/eden,Financial Services Manager,Emergency Planning and Works,Grants and contributions,Pennine View LTD,40228431,14/03/2022,201138,4000,COVID SMALL BUSINESS GRANT
Eden District Council,http://opendatacommunities.org/id/district-council/eden,Financial Services Manager,Emergency Planning and Works,Grants and contributions,THE RATE PAYER,40235835,14/03/2022,201139,2667,COVID SMALL BUSINESS GRANT
Eden District Council,http://opendatacommunities.org/id/district-council/eden,Financial Services Manager,Emergency Planning and Works,Grants and contributions,THE RATE PAYER,40256771,14/03/2022,201140,2667,COVID SMALL BUSINESS GRANT
Eden District Council,http://opendatacommunities.org/id/district-council/eden,Financial Services Manager,Emergency Planning and Works,Grants and contributions,Bampton Village Hall,40033015,14/03/2022,201141,2667,COVID SMALL BUSINESS GRANT
Eden District Council,http://opendatacommunities.org/id/district-council/eden,Financial Services Manager,Emergency Planning and Works,Grants and contributions,THE RATE PAYER,40250896,14/03/2022,201142,2667,COVID SMALL BUSINESS GRANT
Eden District Council,http://opendatacommunities.org/id/district-council/eden,Financial Services Manager,Emergency Planning and Works,Grants and contributions,Darwin (Thanet Well) Ltd,40215725,14/03/2022,201143,4000,COVID SMALL BUSINESS GRANT
Eden District Council,http://opendatacommunities.org/id/district-council/eden,Financial Services Manager,Emergency Planning and Works,Grants and contributions,Granary Cottage Mosedale House,40154028,14/03/2022,201144,2667,COVID SMALL BUSINESS GRANT
Eden District Council,http://opendatacommunities.org/id/district-council/eden,Financial Services Manager,Emergency Planning and Works,Grants and contributions,South Tynedale Railway Preservation Society,40255129,14/03/2022,201145,2667,COVID SMALL BUSINESS GRANT
Eden District Council,http://opendatacommunities.org/id/district-council/eden,Financial Services Manager,Emergency Planning and Works,Grants and contributions,THE RATE PAYER,40257316,14/03/2022,201146,2667,COVID SMALL BUSINESS GRANT
Eden District Council,http://opendatacommunities.org/id/district-council/eden,Financial Services Manager,Emergency Planning and Works,Grants and contributions,THE RATE PAYER,40252007,14/03/2022,201147,2667,COVID SMALL BUSINESS GRANT
Eden District Council,http://opendatacommunities.org/id/district-council/eden,Financial Services Manager,Emergency Planning and Works,Grants and contributions,Elm House Ullswater LTD,40173661,14/03/2022,201148,2667,COVID SMALL BUSINESS GRANT
Eden District Council,http://opendatacommunities.org/id/district-council/eden,Financial Services Manager,Emergency Planning and Works,Grants and contributions,The Bothy Chestnut Cottage & Keepers Cottage,40216803,14/03/2022,201149,2667,COVID SMALL BUSINESS GRANT
Eden District Council,http://opendatacommunities.org/id/district-council/eden,Financial Services Manager,Emergency Planning and Works,Grants and contributions,THE RATE PAYER,40245160,14/03/2022,201150,2667,COVID SMALL BUSINESS GRANT
Eden District Council,http://opendatacommunities.org/id/district-council/eden,Financial Services Manager,Emergency Planning and Works,Grants and contributions,The Mulberry Bush,40174848,14/03/2022,201151,2667,COVID SMALL BUSINESS GRANT
Eden District Council,http://opendatacommunities.org/id/district-council/eden,Financial Services Manager,Emergency Planning and Works,Grants and contributions,Wordsworth Cottage self catering unit and premises,40178246,14/03/2022,201152,2667,COVID SMALL BUSINESS GRANT
Eden District Council,http://opendatacommunities.org/id/district-council/eden,Financial Services Manager,Emergency Planning and Works,Grants and contributions,THE RATE PAYER,40240936,14/03/2022,201153,2667,COVID SMALL BUSINESS GRANT
Eden District Council,http://opendatacommunities.org/id/district-council/eden,Financial Services Manager,Emergency Planning and Works,Grants and contributions,Blakebeck Farm Camping Barn,40222884,14/03/2022,201154,2667,COVID SMALL BUSINESS GRANT
Eden District Council,http://opendatacommunities.org/id/district-council/eden,Financial Services Manager,Emergency Planning and Works,Grants and contributions, Coldbeck Barn Holiday Lets,40051464,14/03/2022,201155,2667,COVID SMALL BUSINESS GRANT
Eden District Council,http://opendatacommunities.org/id/district-council/eden,Financial Services Manager,Emergency Planning and Works,Grants and contributions,THE RATE PAYER,40228332,14/03/2022,201156,2667,COVID SMALL BUSINESS GRANT
Eden District Council,http://opendatacommunities.org/id/district-council/eden,Financial Services Manager,Emergency Planning and Works,Grants and contributions,THE RATE PAYER,40201986,14/03/2022,201157,2667,COVID SMALL BUSINESS GRANT
Eden District Council,http://opendatacommunities.org/id/district-council/eden,Financial Services Manager,Emergency Planning and Works,Grants and contributions,Lamb Corner House,40209645,14/03/2022,201158,2667,COVID SMALL BUSINESS GRANT
Eden District Council,http://opendatacommunities.org/id/district-council/eden,Financial Services Manager,Emergency Planning and Works,Grants and contributions,crown hotel eamont bridge,40205605,14/03/2022,201159,2667,COVID SMALL BUSINESS GRANT
Eden District Council,http://opendatacommunities.org/id/district-council/eden,Financial Services Manager,Emergency Planning and Works,Grants and contributions,High Bield self catering holiday unit,40243515,14/03/2022,201160,2667,COVID SMALL BUSINESS GRANT
Eden District Council,http://opendatacommunities.org/id/district-council/eden,Financial Services Manager,Emergency Planning and Works,Grants and contributions,Robyn�s Barn,40248237,14/03/2022,201161,2667,COVID SMALL BUSINESS GRANT
Eden District Council,http://opendatacommunities.org/id/district-council/eden,Financial Services Manager,Emergency Planning and Works,Grants and contributions,THE RATE PAYER,40246071,14/03/2022,201162,2667,COVID SMALL BUSINESS GRANT
Eden District Council,http://opendatacommunities.org/id/district-council/eden,Financial Services Manager,Emergency Planning and Works,Grants and contributions,THE RATE PAYER,40246811,14/03/2022,201163,2667,COVID SMALL BUSINESS GRANT
Eden District Council,http://opendatacommunities.org/id/district-council/eden,Financial Services Manager,Emergency Planning and Works,Grants and contributions,Village Hall,40036014,14/03/2022,201164,2667,COVID SMALL BUSINESS GRANT
Eden District Council,http://opendatacommunities.org/id/district-council/eden,Financial Services Manager,Emergency Planning and Works,Grants and contributions,HOLIDAY LET  HILLTOP FARMHOUSE,40239110,14/03/2022,201165,2667,COVID SMALL BUSINESS GRANT
Eden District Council,http://opendatacommunities.org/id/district-council/eden,Financial Services Manager,Emergency Planning and Works,Grants and contributions,Rayside Cottage,40253727,14/03/2022,201166,2667,COVID SMALL BUSINESS GRANT
Eden District Council,http://opendatacommunities.org/id/district-council/eden,Financial Services Manager,Emergency Planning and Works,Grants and contributions,Bongate House,40223382,14/03/2022,201167,2667,COVID SMALL BUSINESS GRANT
Eden District Council,http://opendatacommunities.org/id/district-council/eden,Financial Services Manager,Emergency Planning and Works,Grants and contributions,Newbiggin-on-Lune Public Hall,40050157,14/03/2022,201168,2667,COVID SMALL BUSINESS GRANT
Eden District Council,http://opendatacommunities.org/id/district-council/eden,Financial Services Manager,Emergency Planning and Works,Grants and contributions,Mango Tree (NW) limited,40230212,14/03/2022,201169,2667,COVID SMALL BUSINESS GRANT
Eden District Council,http://opendatacommunities.org/id/district-council/eden,Financial Services Manager,Emergency Planning and Works,Grants and contributions,THE RATE PAYER,40255228,14/03/2022,201170,2667,COVID SMALL BUSINESS GRANT
Eden District Council,http://opendatacommunities.org/id/district-council/eden,Financial Services Manager,Emergency Planning and Works,Grants and contributions,the masons arms,40251134,14/03/2022,201171,2667,COVID SMALL BUSINESS GRANT
Eden District Council,http://opendatacommunities.org/id/district-council/eden,Financial Services Manager,Emergency Planning and Works,Grants and contributions,THE RATE PAYER,40037598,14/03/2022,201172,2667,COVID SMALL BUSINESS GRANT
Eden District Council,http://opendatacommunities.org/id/district-council/eden,Financial Services Manager,Emergency Planning and Works,Grants and contributions,Cawburn and Milburn Cottages,40180607,14/03/2022,201173,2667,COVID SMALL BUSINESS GRANT
Eden District Council,http://opendatacommunities.org/id/district-council/eden,Financial Services Manager,Emergency Planning and Works,Grants and contributions,Highland Drove,40253239,14/03/2022,201174,4000,COVID SMALL BUSINESS GRANT
Eden District Council,http://opendatacommunities.org/id/district-council/eden,Financial Services Manager,Emergency Planning and Works,Grants and contributions,THE ABBEY KITCHEN LTD,40257408,14/03/2022,201175,2667,COVID SMALL BUSINESS GRANT
Eden District Council,http://opendatacommunities.org/id/district-council/eden,Legal Services Manager,Elections,Postages,PRINT IMAGE FACILITIES LLP,PRI014,18/03/2022,200970,18492.28,EDEN 22POLL CARD POSTAGE 1 ST INVOICE
Eden District Council,http://opendatacommunities.org/id/district-council/eden,Financial Services Manager,Corporate Costs,Professional fees,MAZARS LLP,MAZ001,18/03/2022,200983,7600,work on hbap yr ended 31.03.21
Eden District Council,http://opendatacommunities.org/id/district-council/eden,Revenue/Benefits Manager,Revenue & Benefits,Subscriptions & levies,IRRV,IRR003,18/03/2022,201178,1200,ANNUAL SUBSCRIPTION 2022
Eden District Council,http://opendatacommunities.org/id/district-council/eden,Legal Services Manager,Land Management,Planned Maintenance,WALTON GOODLAND LTD,WAL008,18/03/2022,201180,713.72,ENERGY PERFORMANCE CERTS
Eden District Council,http://opendatacommunities.org/id/district-council/eden,Commercial Services Manager,Commercial Services,Agency Staff,VIVID RESOURCING,VIV001,18/03/2022,201191,4375,TIME SHEET WE 06.3.22 FM
Eden District Council,http://opendatacommunities.org/id/district-council/eden,Commercial Services Manager,Commercial Services,Agency Staff,VIVID RESOURCING,VIV001,18/03/2022,201193,2750,TIME SHEET WE 6.3.22 GM
Eden District Council,http://opendatacommunities.org/id/district-council/eden,Planning Services,Planning Services,Agency Staff,VIVID RESOURCING,VIV001,18/03/2022,201196,2500,TIME SHEET WE 06.3.22 JS
Eden District Council,http://opendatacommunities.org/id/district-council/eden,Environmental Services,Environmental Services,Software � maintenance,CIVICA UK LTD,CIV002,18/03/2022,200015,15655.71,11 LICENCES APP SUPPORT
Eden District Council,http://opendatacommunities.org/id/district-council/eden,Human Resources Manager,Staff Development,Training Expenses,SOUTH LAKELAND DISTRICT COUNCIL,SOU006,18/03/2022,200110,670,OPERATIONAL PLAY INSPECTORS TRAINING
Eden District Council,http://opendatacommunities.org/id/district-council/eden,Financial Services Manager,Heart of Cumbria,Professional fees,HEATONS GROUP LTD,LAK004,18/03/2022,200139,967.22,PAPER STATIONERY DUSTBINS
Eden District Council,http://opendatacommunities.org/id/district-council/eden,Planning Services,Planning Services,Agency Staff,VIVID RESOURCING,VIV001,18/03/2022,200907,1650,TIME SHEET WE 27.02.22 RF
Eden District Council,http://opendatacommunities.org/id/district-council/eden,Chief Executive's,One Eden Programme,Professional fees,MBSP CONSULTANCY LTD,MBS001,18/03/2022,200922,7200,ONE EDEN SUPPORT FEB22
Eden District Council,http://opendatacommunities.org/id/district-council/eden,Transformation & Customers Head of,Corporate Services,Equipment � purchase,IDEAGEN GAEL,IDE007,18/03/2022,200927,1195,PENTANA RISK MAR22
Eden District Council,http://opendatacommunities.org/id/district-council/eden,Commercial Services Manager,Economic Development and Promotion,Grants and contributions,RYAN BLACKBURN JOINERY,RYA006,18/03/2022,200933,500,FINAL APPRENTICE PAYMENT LR
Eden District Council,http://opendatacommunities.org/id/district-council/eden,Commercial Services Manager,Economic Development and Promotion,Grants and contributions,CASTLE FINE ARTS,CAS015,18/03/2022,200946,1800,VARIOUS MAP / ARTWORK
Eden District Council,http://opendatacommunities.org/id/district-council/eden,Commercial Services Manager,Economic Development and Promotion,Grants and contributions,CASTLE FINE ARTS,CAS015,18/03/2022,200947,2000,VARIOUS MAPS / ARTWORK
Eden District Council,http://opendatacommunities.org/id/district-council/eden,Commercial Services Manager,Economic Development and Promotion,Grants and contributions,CASTLE FINE ARTS,CAS015,18/03/2022,200948,1175,VARIOUS MAP / ARTWORK
Eden District Council,http://opendatacommunities.org/id/district-council/eden,Commercial Services Manager,Economic Development and Promotion,Grants and contributions,GHYLLMOUNT DENTAL,GHY001,18/03/2022,200969,1000,1ST APPRENTICE PAYMENT LJ
Eden District Council,http://opendatacommunities.org/id/district-council/eden,Financial Services Manager,Financial Services,Subscriptions & levies,CIPFA,CIP001,18/03/2022,200979,885,TISONLINE TAKE 5 01.4.22-31.3.23
Eden District Council,http://opendatacommunities.org/id/district-council/eden,Technical Services Manager,Land Management,Building works,BAKER MALLETT LLP,BAK010,18/03/2022,200984,1420,COST PLAN/ PROCESS / FEES NR15
Eden District Council,http://opendatacommunities.org/id/district-council/eden,Technical Services Manager,Land Management,Building works,BAKER MALLETT LLP,BAK010,18/03/2022,200985,4048,PROJECT MANAGEMENT 1.2.22-28.2.22 NR14
Eden District Council,http://opendatacommunities.org/id/district-council/eden,Revenue/Benefits Manager,Revenue & Benefits,Advertising,BARRNON MEDIA LTD,CUM001,18/03/2022,200988,2325,COUNCIL TAX AD 05.3.22
Eden District Council,http://opendatacommunities.org/id/district-council/eden,Technical Services Manager,Eden Leisure Centre & Appleby Swimming P,GLL Ad-hoc Sports Pitches,URBASER LIMITED,URB002,18/03/2022,201094,1185.56,LEISURE AD HOC APR 21
Eden District Council,http://opendatacommunities.org/id/district-council/eden,Environmental Services,1996 Mandatory Renovation Grants,Capital grants,EDEN HOUSING ASSOCIATION LTD,EDE001,18/03/2022,199977,1162.57,INT PAYMENT GRANT REF 210068
Eden District Council,http://opendatacommunities.org/id/district-council/eden,Planning Services,Planning Services,Agency Staff,G2 RECRUITMENT SOLUTIONS,G2R001,18/03/2022,200018,1665,TIME SHEET WE13.2.22 JH
Eden District Council,http://opendatacommunities.org/id/district-council/eden,Transformation & Customers Head of,Central Expenses,Postages,CUMBRIA MAILING SERVICES LTD,CUM011,18/03/2022,200067,1282.9,MAIL MERGE AND POSTAGE
Eden District Council,http://opendatacommunities.org/id/district-council/eden,Technical Services Manager,Technical Services,Agency Staff,VIVID RESOURCING,VIV001,18/03/2022,200068,3525,TIME SHEET WE 20.02.22 DH
Eden District Council,http://opendatacommunities.org/id/district-council/eden,Environmental Services,Environmental Services,Agency Staff,VIVID RESOURCING,VIV001,18/03/2022,200071,1440,time sheet we 20.2.22 bn
Eden District Council,http://opendatacommunities.org/id/district-council/eden,Planning Services,Planning Services,Agency Staff,G2 RECRUITMENT SOLUTIONS,G2R001,18/03/2022,200073,1665,time sheet we 20.2.22 jh
Eden District Council,http://opendatacommunities.org/id/district-council/eden,Environmental Services,Home Improvement Agency,Postages,CUMBRIA MAILING SERVICES LTD,CUM011,18/03/2022,200076,795.82,INSULATION MAILING REVISIT 4 DATA
Eden District Council,http://opendatacommunities.org/id/district-council/eden,Financial Services Manager,Financial Services,"Books, publications",CIPFA,CIP001,18/03/2022,200096,3860,SUBSCRIPTION 1.4.22-31.3.23
Eden District Council,http://opendatacommunities.org/id/district-council/eden,Environmental Services,Environmental Services,Agency Staff,VIVID RESOURCING,VIV001,18/03/2022,200908,650,TIME SHEET WE 27.02.22 BN
Eden District Council,http://opendatacommunities.org/id/district-council/eden,Planning Services,Planning Services,Agency Staff,VIVID RESOURCING,VIV001,18/03/2022,200909,1060,TIME SHEET WE 20.2.22 DM
Eden District Council,http://opendatacommunities.org/id/district-council/eden,Environmental Services,1996 Mandatory Renovation Grants,Capital grants,THE EXCELLENT RAMP SYSTEM,EXE001,18/03/2022,200911,2250,FIN PAYMENT GRANT REF 210063
Eden District Council,http://opendatacommunities.org/id/district-council/eden,Environmental Services,Home Improvement Agency,Professional fees,CUMBRIAN NEWSPAPERS LTD,CUM024,18/03/2022,200920,808.24,VARIOUS ADSFEB22
Eden District Council,http://opendatacommunities.org/id/district-council/eden,Planning Services,Planning Services,Agency Staff,G2 RECRUITMENT SOLUTIONS,G2R001,18/03/2022,200924,1665,TIME SHEET WE 27.02.22 JH
Eden District Council,http://opendatacommunities.org/id/district-council/eden,Environmental Services,1996 Mandatory Renovation Grants,Capital grants,DAY CUMMINS LTD,DAY002,18/03/2022,200926,1260,ARC FEE GRANT REF 210096
Eden District Council,http://opendatacommunities.org/id/district-council/eden,Environmental Services,1996 Mandatory Renovation Grants,Capital grants,C W COX & SONS (KENDAL)  LTD,COX001,18/03/2022,200931,4403.6,INT PAYMENTGRANT REF 210086
Eden District Council,http://opendatacommunities.org/id/district-council/eden,Financial Services Manager,Financial Services,Agency Staff,CIPFA PENNA,CIP013,18/03/2022,200955,10535.75,INTERIM MANAGEMENT FEB 22 DB
Eden District Council,http://opendatacommunities.org/id/district-council/eden,Legal Services Manager,Elections,Supplies general,SHAW & SONS LTD,SHA002,18/03/2022,200958,2559.5,ELECTION PACKS
Eden District Council,http://opendatacommunities.org/id/district-council/eden,Revenue/Benefits Manager,Revenue & Benefits,Postages,CFH DOCMAIL LTD,CFH001,18/03/2022,200965,705,C5 EDC EDEAXIONX PART 1
Eden District Council,http://opendatacommunities.org/id/district-council/eden,Commercial Services Manager,Tourism Promotion,Marketing,NPD NORTH LTD,NPD001,25/03/2022,201182,550,DISTRIBUTION 5000 VISITOR GUIDES 2022
Eden District Council,http://opendatacommunities.org/id/district-council/eden,Technical Services Manager,Street Cleaning,Gum removal,UK NATIONWIDE CLEANING SERVICES LTD,UKN001,25/03/2022,201187,10697.95,DEEP CLEAN PAVEMENTS PENRITH /APPLEBY
Eden District Council,http://opendatacommunities.org/id/district-council/eden,Human Resources Manager,Human Resources,Rental/Maintenance of Door Entry System,HFX LTD,HFX001,25/03/2022,201222,1861.01,HFX SYSTEM MAIN CONTRACT 16.3.22-15.3.23
Eden District Council,http://opendatacommunities.org/id/district-council/eden,Planning Services,Planning Services,Agency Staff,G2 RECRUITMENT SOLUTIONS,G2R001,25/03/2022,201289,1665,TIME SHEET WE 13.03.22 JH
Eden District Council,http://opendatacommunities.org/id/district-council/eden,Commercial Services Manager,Commercial Services,Agency Staff,VIVID RESOURCING,VIV001,25/03/2022,201294,4375,TIME SHEET WE 13.3.22 FM
Eden District Council,http://opendatacommunities.org/id/district-council/eden,Planning Services,Planning Services,Agency Staff,VIVID RESOURCING,VIV001,25/03/2022,201299,2750,TIME SHEET WE 13.03.22RF
Eden District Council,http://opendatacommunities.org/id/district-council/eden,Commercial Services Manager,Commercial Services,Agency Staff,VIVID RESOURCING,VIV001,25/03/2022,201301,2750,TIME SHEET WE 13.03.22GM
Eden District Council,http://opendatacommunities.org/id/district-council/eden,Commercial Services Manager,Town Centres,Grants and contributions,THE HEART OF CUMBRIA,HEA025,25/03/2022,201353,500,ADVERTISING SPECIALIST SHOP BOOKLET
Eden District Council,http://opendatacommunities.org/id/district-council/eden,Technical Services Manager,Land Charges,Professional fees,CUMBRIA COUNTY COUNCIL,CCC002,25/03/2022,201201,1012,HIGHWAY SEARCHES FEB 22
Eden District Council,http://opendatacommunities.org/id/district-council/eden,Commercial Services Manager,Economic Development and Promotion,Grants and contributions,DUNBOBBIN HOTELS LTD T/A APPLEBY MANOR HOTEL,DUN001,25/03/2022,201203,1000,1ST APPRENTICE PAYMENT JT
Eden District Council,http://opendatacommunities.org/id/district-council/eden,Commercial Services Manager,Town Centres,Grants and contributions,ALSTON RECREATION GROUND TRUST,ALS014,25/03/2022,201213,2304.86,WELCOME BACK TO EDEN 2
Eden District Council,http://opendatacommunities.org/id/district-council/eden,Technical Services Manager,Recycling,Recycling - Garden Waste,CUMBRIA WASTE RECYCLING LTD,CUM022,25/03/2022,201217,35558.86,CERT GW-11-21/22
Eden District Council,http://opendatacommunities.org/id/district-council/eden,Commercial Services Manager,Economic Development and Promotion,Grants and contributions,DYNAMIC JOINERY LTD,DYN004,25/03/2022,201223,500,2ND /FINAL APPRENTICE PAYMENT SA
Eden District Council,http://opendatacommunities.org/id/district-council/eden,Commercial Services Manager,Town Centres,Grants and contributions,ALSTON MOOR BUSINESS ASSOCIATION,ALS027,25/03/2022,201280,3000,WELCOME BACK TO EDEN GRANT 2
Eden District Council,http://opendatacommunities.org/id/district-council/eden,Commercial Services Manager,Town Centres,Grants and contributions,MATTERDALE PARISH COUNCIL,MAT002,25/03/2022,201288,5800,WELCOME BACK TO EDEN GRANT 2
Eden District Council,http://opendatacommunities.org/id/district-council/eden,Technical Services Manager,Recycling,Recycling  - Bring Sites,CUMBRIA WASTE RECYCLING LTD,CUM022,25/03/2022,201304,7266.28,CERT BS-114
Eden District Council,http://opendatacommunities.org/id/district-council/eden,Technical Services Manager,Recycling,Recycling - Bag & Box,CUMBRIA WASTE RECYCLING LTD,CUM022,25/03/2022,201305,31761.77,CERT GB-35-21/22
Eden District Council,http://opendatacommunities.org/id/district-council/eden,Technical Services Manager,Recycling,material price fluctuations,CUMBRIA WASTE RECYCLING LTD,CUM022,25/03/2022,201309,921.61,BS-F-91 2021/22
Eden District Council,http://opendatacommunities.org/id/district-council/eden,Commercial Services Manager,Town Centres,Grants and contributions,APPLEBY TOWN COUNCIL,APP001,25/03/2022,201341,5000,WELCOME BACK TO EDEN GRANT 2
Eden District Council,http://opendatacommunities.org/id/district-council/eden,Technical Services Manager,Administrative Buildings,Gas,GAZPROM ENERGY,GAZ001,25/03/2022,201343,953.42,TOWN HALL
Eden District Council,http://opendatacommunities.org/id/district-council/eden,Technical Services Manager,Administrative Buildings,Gas,GAZPROM ENERGY,GAZ001,25/03/2022,201345,635.85,MANSION HOUSE
Eden District Council,http://opendatacommunities.org/id/district-council/eden,Technical Services Manager,Technical Services,Agency Staff,VIVID RESOURCING,VIV001,25/03/2022,200905,1762.5,TIME SHEET WE 27.02.22 DH
Eden District Council,http://opendatacommunities.org/id/district-council/eden,Technical Services Manager,Recycling,Calendars,CUMBRIA MAILING SERVICES LTD,CUM011,25/03/2022,201066,14362.75,RECYCLE CALENDERS 22/23
Eden District Council,http://opendatacommunities.org/id/district-council/eden,Planning Services,Planning Services,Agency Staff,VIVID RESOURCING,VIV001,25/03/2022,201082,2000,TIME SHEET WE 27.2.22
Eden District Council,http://opendatacommunities.org/id/district-council/eden,Environmental Services,Environmental Services,Agency Staff,VIVID RESOURCING,VIV001,25/03/2022,201177,2080,TIME SHEET WE 06.3.22 BN
Eden District Council,http://opendatacommunities.org/id/district-council/eden,Environmental Services,1996 Mandatory Renovation Grants,Capital grants,PPM LTD,PPM001,25/03/2022,201184,10118,FIN PAYMENT GRANT REF 210031
Eden District Council,http://opendatacommunities.org/id/district-council/eden,Planning Services,Planning Services,Agency Staff,VIVID RESOURCING,VIV001,25/03/2022,201192,1007,TIME SHEET WE 6.3.22 DM
Eden District Council,http://opendatacommunities.org/id/district-council/eden,Technical Services Manager,Technical Services,Agency Staff,VIVID RESOURCING,VIV001,25/03/2022,201194,1762.5,TIME SHEET WE 06.3.22 DH
Eden District Council,http://opendatacommunities.org/id/district-council/eden,Environmental Services,Environmental Services,Agency Staff,VIVID RESOURCING,VIV001,25/03/2022,201195,2175,TIME SHEET WE 6.3.22 AND 27.2.22 PO
Eden District Council,http://opendatacommunities.org/id/district-council/eden,Planning Services,Planning Services,Agency Staff,VIVID RESOURCING,VIV001,25/03/2022,201199,2200,time sheet we 06.3.22 rf
Eden District Council,http://opendatacommunities.org/id/district-council/eden,Financial Services Manager,Financial Services,Agency Staff,CIPFA PENNA,CIP013,25/03/2022,201204,14080,INTERIM MANAGMENT FEB22 PS
Eden District Council,http://opendatacommunities.org/id/district-council/eden,Information Technology Manager,Information Technology,Software � maintenance,SOUTH LAKELAND DISTRICT COUNCIL,SOU006,25/03/2022,200109,47823,SHARE MOBILE PHONE SECURITY 21-22
Eden District Council,http://opendatacommunities.org/id/district-council/eden,Technical Services Manager,Land Management,Gas,TOTAL GAS AND POWER LTD,TOT005,25/03/2022,200904,749.8,AGE CONCERN
Eden District Council,http://opendatacommunities.org/id/district-council/eden,Technical Services Manager,Administrative Buildings,Water charges � metered,WATER PLUS,UNI008,25/03/2022,200960,776.25,MANSION HOUSE 02.2.22-01.3.22
Eden District Council,http://opendatacommunities.org/id/district-council/eden,Technical Services Manager,Administrative Buildings,Water charges � metered,WATER PLUS,UNI008,25/03/2022,200961,705.68,VOREDA 11.10.21-01.2.22
Eden District Council,http://opendatacommunities.org/id/district-council/eden,Technical Services Manager,Public Conveniences,Water testing,MITIE,REN007,25/03/2022,200968,549.43,SERVICES 1.3.22-31.322
Eden District Council,http://opendatacommunities.org/id/district-council/eden,Commercial Services Manager,Museum,Water charges � unmetered,WATER PLUS,UNI008,25/03/2022,201068,526.17,MUSEUM 01.4.22-31.03.23
Eden District Council,http://opendatacommunities.org/id/district-council/eden,Commercial Services Manager,Town Centres,Grants and contributions,PENRITH B I D COMPANY LTD,PEN085,25/03/2022,201209,5000,WELCOME BACK TO EDEN GRANT 2
Eden District Council,http://opendatacommunities.org/id/district-council/eden,Legal Services Manager,Industrial Estates,Gas,PATTERDALE PARISH COUNCIL,PAT002,25/03/2022,201210,4320,PATTERDALE PCS CONTRIBUTION
Eden District Council,http://opendatacommunities.org/id/district-council/eden,Commercial Services Manager,Town Centres,Grants and contributions,PENRITH CHAMBER OF TRADE,PEN044,25/03/2022,201214,3644.22,WELCOME BACK TO EDEN 2
Eden District Council,http://opendatacommunities.org/id/district-council/eden,Financial Services Manager,Financial Services,Internal Audit,TIAA LTD,TIA001,25/03/2022,201302,975,21/22 FOLLOW UP QTR4
Eden District Council,http://opendatacommunities.org/id/district-council/eden,Technical Services Manager,Recycling,Commercial Recycling,CUMBRIA WASTE RECYCLING LTD,CUM022,25/03/2022,201303,623.03,CERT F-35-2021/22
Eden District Council,http://opendatacommunities.org/id/district-council/eden,Technical Services Manager,Administrative Buildings,Electricity,NPOWER LTD,NPO001,25/03/2022,201319,1317.24,th 1.2.22-28.2.22
Eden District Council,http://opendatacommunities.org/id/district-council/eden,Technical Services Manager,Administrative Buildings,Electricity,NPOWER LTD,NPO001,25/03/2022,201320,724.54,mh 01.2.22-28.2.22
Eden District Council,http://opendatacommunities.org/id/district-council/eden,Commercial Services Manager,Town Centres,Grants and contributions,PENRITH TOWN COUNCIL,PEN080,25/03/2022,201340,5000,WELCOME BACK TO EDEN GRANT 2
Eden District Council,http://opendatacommunities.org/id/district-council/eden,Environmental Services,Water Sampling,Professional fees,UNITED UTILITIES WATER PLC,UNI024,25/03/2022,200077,524.79,INCOME LABSJAN22
Eden District Council,http://opendatacommunities.org/id/district-council/eden,Planning Services,Planning Services,Agency Staff,G2 RECRUITMENT SOLUTIONS,G2R001,25/03/2022,201188,1608.75,TIME SHEET WE 06.3.22 JH
Eden District Council,http://opendatacommunities.org/id/district-council/eden,Financial Services Manager,Insurance,Insurance,ZURICH INSURANCE PLC,ZUR001,25/03/2022,201215,5257.18,INSURANCE RENEWAL ENGINEER INSP 30.01.23
Eden District Council,http://opendatacommunities.org/id/district-council/eden,Financial Services Manager,Insurance,Insurance,ZURICH INSURANCE PLC,ZUR001,25/03/2022,201216,1923.52,INSURANCE RENEWAL EXP30.1.23
Eden District Council,http://opendatacommunities.org/id/district-council/eden,Financial Services Manager,Financial Services,Professional fees,WALTON GOODLAND LTD,WAL008,25/03/2022,201293,12850,EDC ASSET VALUATION 31.3.22
Eden District Council,http://opendatacommunities.org/id/district-council/eden,Planning Policy Manager,Environmental Enhancement & Conservation,Professional fees,LEWIS SURVEYING ASSOCIATES (HEXHAM & PENRITH) LTD,LEW012,25/03/2022,201351,1400,SURVEY APPLEBY CASTLE STABLES
Eden District Council,http://opendatacommunities.org/id/district-council/eden,Technical Services Manager,Public Conveniences,Building Maintenance,URBASER LIMITED,URB002,25/03/2022,201085,4187.16,BUILDING RESPONSE AD HOC MAY21
Eden District Council,http://opendatacommunities.org/id/district-council/eden,Environmental Services,Housing Delivery,Professional fees,URBASER LIMITED,URB002,25/03/2022,201086,4323.63,BUILDING RESPONSE AD HOC APR 21
Eden District Council,http://opendatacommunities.org/id/district-council/eden,Environmental Services,Appleby Fair,Abnormal maintenance,URBASER LIMITED,URB002,25/03/2022,201088,4025.89,BUILDING RESPONSE AUG21
Eden District Council,http://opendatacommunities.org/id/district-council/eden,Technical Services Manager,Public Conveniences,Building Maintenance,URBASER LIMITED,URB002,25/03/2022,201089,2245.37,BUILDING REPSONSE AD HOC SEPT 21
Eden District Council,http://opendatacommunities.org/id/district-council/eden,Technical Services Manager,Public Conveniences,Building Maintenance,URBASER LIMITED,URB002,25/03/2022,201090,1644.49,BUILDING RESPONSE AD HOC OCT21
Eden District Council,http://opendatacommunities.org/id/district-council/eden,Technical Services Manager,Public Conveniences,Building Maintenance,URBASER LIMITED,URB002,25/03/2022,201091,1944.98,BUILDING REPSPONSE AD HOC NOV21
Eden District Council,http://opendatacommunities.org/id/district-council/eden,Technical Services Manager,Tourist Information Centres,Building Maintenance,URBASER LIMITED,URB002,25/03/2022,201092,2088.19,BUILDING RESPONSE AD HOC DEC 21
Eden District Council,http://opendatacommunities.org/id/district-council/eden,Technical Services Manager,Eden Leisure Centre & Appleby Swimming P,GLL Ad-hoc Sports Pitches,URBASER LIMITED,URB002,25/03/2022,201096,3065.79,LEISURE AD HOC JUNE 21
Eden District Council,http://opendatacommunities.org/id/district-council/eden,Technical Services Manager,Refuse Collection,Contract refuse collection,URBASER LIMITED,URB002,25/03/2022,201283,76696.35,CERT M-RC120
Eden District Council,http://opendatacommunities.org/id/district-council/eden,Environmental Services,Appleby Fair,Street Cleaning Contract,URBASER LIMITED,URB002,25/03/2022,201284,19004.92,CERT M-SC120
Eden District Council,http://opendatacommunities.org/id/district-council/eden,Technical Services Manager,Recycling,Em Wks Storage,URBASER LIMITED,URB002,25/03/2022,201285,552.37,CERT M-M&EW 120/22
Eden District Council,http://opendatacommunities.org/id/district-council/eden,Technical Services Manager,Street Cleaning,Street Cleaning Contract,URBASER LIMITED,URB002,25/03/2022,201286,2463.57,CERT SC101
Eden District Council,http://opendatacommunities.org/id/district-council/eden,Technical Services Manager,Footway Lighting,FL  Contract,URBASER LIMITED,URB002,25/03/2022,201287,2736.77,CERT FL 12/22
Eden District Council,http://opendatacommunities.org/id/district-council/eden,Technical Services Manager,Refuse Collection,Refuse Contract Dayworks,URBASER LIMITED,URB002,25/03/2022,201316,1209.78,CERT REC111
Eden District Council,http://opendatacommunities.org/id/district-council/eden,Environmental Services,Home Improvement Agency,Advertising,BAUER RADIO LTD,BAU001,31/03/2022,201326,1074.36,FEB22 GHG CAMPAIGN
Eden District Council,http://opendatacommunities.org/id/district-council/eden,Technical Services Manager,Cemeteries,GM External Contractors,NORTH WEST ARBORICULTURAL SERVICES LTD,NOR066,31/03/2022,201357,1695,TREE WORKS GARRIGIL
Eden District Council,http://opendatacommunities.org/id/district-council/eden,Chief Executive's,Local Government Review,Local Government Reorganisation - Costs,Ballicom Limited,BAL011,31/03/2022,201360,56319.36,MICROSIFT LAPTOP
Eden District Council,http://opendatacommunities.org/id/district-council/eden,Technical Services Manager,Emergency Planning and Works,Grounds Maint Contract additional works,URBASER LIMITED,URB002,31/03/2022,201370,5208.54,FRENCHFIELD GM FEB 22
Eden District Council,http://opendatacommunities.org/id/district-council/eden,Human Resources Manager,Central Expenses,Advertising,CUMBRIAN NEWSPAPERS LTD,CUM024,31/03/2022,201379,795,job adverts
Eden District Council,http://opendatacommunities.org/id/district-council/eden,Financial Services Manager,Emergency Planning and Works,Grants and contributions,THE BARN MIDLAND HOUSE RENWICK PENRITH CA10 1JL,40244006,25/03/2022,201437,2667,COVID SMALL BUSINESS GRANT
Eden District Council,http://opendatacommunities.org/id/district-council/eden,Financial Services Manager,Emergency Planning and Works,Grants and contributions,Appleby Eden Cricket Club,40039563,25/03/2022,201438,2667,COVID SMALL BUSINESS GRANT
Eden District Council,http://opendatacommunities.org/id/district-council/eden,Financial Services Manager,Emergency Planning and Works,Grants and contributions,The Station (castlegate) Ltd,40229700,25/03/2022,201439,4000,COVID SMALL BUSINESS GRANT
Eden District Council,http://opendatacommunities.org/id/district-council/eden,Financial Services Manager,Emergency Planning and Works,Grants and contributions,Maple Bridge Corporation Ltd,40194644,25/03/2022,201440,2667,COVID SMALL BUSINESS GRANT
Eden District Council,http://opendatacommunities.org/id/district-council/eden,Financial Services Manager,Emergency Planning and Works,Grants and contributions,Black Swan,40163923,25/03/2022,201441,6000,COVID SMALL BUSINESS GRANT
Eden District Council,http://opendatacommunities.org/id/district-council/eden,Financial Services Manager,Emergency Planning and Works,Grants and contributions,THE RATE PAYER,40250322,25/03/2022,201442,2667,COVID SMALL BUSINESS GRANT
Eden District Council,http://opendatacommunities.org/id/district-council/eden,Financial Services Manager,Emergency Planning and Works,Grants and contributions,Brantwood,40169884,25/03/2022,201443,4000,COVID SMALL BUSINESS GRANT
Eden District Council,http://opendatacommunities.org/id/district-council/eden,Financial Services Manager,Emergency Planning and Works,Grants and contributions,THE RATE PAYER,40256603,25/03/2022,201444,2667,COVID SMALL BUSINESS GRANT
Eden District Council,http://opendatacommunities.org/id/district-council/eden,Financial Services Manager,Emergency Planning and Works,Grants and contributions,Lazonby Bowling Club,40050706,25/03/2022,201445,2667,COVID SMALL BUSINESS GRANT
Eden District Council,http://opendatacommunities.org/id/district-council/eden,Financial Services Manager,Emergency Planning and Works,Grants and contributions,Miners Arms,40253857,25/03/2022,201446,2667,COVID SMALL BUSINESS GRANT
Eden District Council,http://opendatacommunities.org/id/district-council/eden,Financial Services Manager,Emergency Planning and Works,Grants and contributions,The New Inn 1730 ltd,40246262,25/03/2022,201447,2667,COVID SMALL BUSINESS GRANT
Eden District Council,http://opendatacommunities.org/id/district-council/eden,Financial Services Manager,Emergency Planning and Works,Grants and contributions,THE RATE PAYER,40243447,25/03/2022,201448,2667,COVID SMALL BUSINESS GRANT
Eden District Council,http://opendatacommunities.org/id/district-council/eden,Financial Services Manager,Emergency Planning and Works,Grants and contributions,THE RATE PAYER,40250612,25/03/2022,201449,2667,COVID SMALL BUSINESS GRANT
Eden District Council,http://opendatacommunities.org/id/district-council/eden,Financial Services Manager,Emergency Planning and Works,Grants and contributions,Let The Adventure Begin Ltd,40252878,25/03/2022,201450,2667,COVID SMALL BUSINESS GRANT
Eden District Council,http://opendatacommunities.org/id/district-council/eden,Financial Services Manager,Emergency Planning and Works,Grants and contributions,AJT Properties Ltd,40257101,25/03/2022,201451,2667,COVID SMALL BUSINESS GRANT
Eden District Council,http://opendatacommunities.org/id/district-council/eden,Financial Services Manager,Emergency Planning and Works,Grants and contributions,THE RATE PAYER,40222891,25/03/2022,201452,2667,COVID SMALL BUSINESS GRANT
Eden District Council,http://opendatacommunities.org/id/district-council/eden,Financial Services Manager,Emergency Planning and Works,Grants and contributions,Taylor Country Cottages Ltd,40242703,25/03/2022,201453,2667,COVID SMALL BUSINESS GRANT
Eden District Council,http://opendatacommunities.org/id/district-council/eden,Financial Services Manager,Emergency Planning and Works,Grants and contributions,The Beehive (Penrith) LTD,40221362,25/03/2022,201454,2667,COVID SMALL BUSINESS GRANT
Eden District Council,http://opendatacommunities.org/id/district-council/eden,Financial Services Manager,Emergency Planning and Works,Grants and contributions,Brougham Hall Charitable Trust,40172866,25/03/2022,201455,2667,COVID SMALL BUSINESS GRANT
Eden District Council,http://opendatacommunities.org/id/district-council/eden,Financial Services Manager,Emergency Planning and Works,Grants and contributions,Gill Cottage Self Catering Holiday Unit,40225104,25/03/2022,201456,2667,COVID SMALL BUSINESS GRANT
Eden District Council,http://opendatacommunities.org/id/district-council/eden,Financial Services Manager,Emergency Planning and Works,Grants and contributions,THE RATE PAYER,40179645,25/03/2022,201457,2667,COVID SMALL BUSINESS GRANT
Eden District Council,http://opendatacommunities.org/id/district-council/eden,Financial Services Manager,Emergency Planning and Works,Grants and contributions,THE RATE PAYER,40250155,25/03/2022,201458,2667,COVID SMALL BUSINESS GRANT
Eden District Council,http://opendatacommunities.org/id/district-council/eden,Financial Services Manager,Emergency Planning and Works,Grants and contributions,THE RATE PAYER,40251936,25/03/2022,201459,2667,COVID SMALL BUSINESS GRANT
Eden District Council,http://opendatacommunities.org/id/district-council/eden,Financial Services Manager,Emergency Planning and Works,Grants and contributions,THE RATE PAYER,40208604,25/03/2022,201460,2667,COVID SMALL BUSINESS GRANT
Eden District Council,http://opendatacommunities.org/id/district-council/eden,Financial Services Manager,Emergency Planning and Works,Grants and contributions, Sycamore Cottage,40171498,25/03/2022,201461,2667,COVID SMALL BUSINESS GRANT
Eden District Council,http://opendatacommunities.org/id/district-council/eden,Financial Services Manager,Emergency Planning and Works,Grants and contributions,Dairy Cottage,40128470,25/03/2022,201462,2667,COVID SMALL BUSINESS GRANT
Eden District Council,http://opendatacommunities.org/id/district-council/eden,Financial Services Manager,Emergency Planning and Works,Grants and contributions,Bakers Cottage,40249575,25/03/2022,201463,2667,COVID SMALL BUSINESS GRANT
Eden District Council,http://opendatacommunities.org/id/district-council/eden,Financial Services Manager,Emergency Planning and Works,Grants and contributions,Bampton Village Shop,40247746,25/03/2022,201464,2667,COVID SMALL BUSINESS GRANT
Eden District Council,http://opendatacommunities.org/id/district-council/eden,Financial Services Manager,Emergency Planning and Works,Grants and contributions,Moss bank country lodges,40231086,25/03/2022,201465,2667,COVID SMALL BUSINESS GRANT
Eden District Council,http://opendatacommunities.org/id/district-council/eden,Financial Services Manager,Emergency Planning and Works,Grants and contributions,The Holiday Cottages  Greystone,40191423,25/03/2022,201466,2667,COVID SMALL BUSINESS GRANT
Eden District Council,http://opendatacommunities.org/id/district-council/eden,Financial Services Manager,Emergency Planning and Works,Grants and contributions,MILBURN VILLAGE HALL,40040303,25/03/2022,201467,2667,COVID SMALL BUSINESS GRANT
Eden District Council,http://opendatacommunities.org/id/district-council/eden,Financial Services Manager,Emergency Planning and Works,Grants and contributions,THE RATE PAYER,40243881,25/03/2022,201468,2667,COVID SMALL BUSINESS GRANT
Eden District Council,http://opendatacommunities.org/id/district-council/eden,Financial Services Manager,Emergency Planning and Works,Grants and contributions,TUFTON ARMS HOTEL,40223450,25/03/2022,201469,4000,COVID SMALL BUSINESS GRANT
Eden District Council,http://opendatacommunities.org/id/district-council/eden,Financial Services Manager,Emergency Planning and Works,Grants and contributions,Stable Cottage,40168751,25/03/2022,201470,2667,COVID SMALL BUSINESS GRANT
Eden District Council,http://opendatacommunities.org/id/district-council/eden,Financial Services Manager,Emergency Planning and Works,Grants and contributions,Travelodge Hotels Limited,40170846,25/03/2022,201471,6000,COVID SMALL BUSINESS GRANT
Eden District Council,http://opendatacommunities.org/id/district-council/eden,Financial Services Manager,Emergency Planning and Works,Grants and contributions,Red news ltd t/a xaviers,40220901,25/03/2022,201472,2667,COVID SMALL BUSINESS GRANT
Eden District Council,http://opendatacommunities.org/id/district-council/eden,Financial Services Manager,Emergency Planning and Works,Grants and contributions,THE RATE PAYER,40226367,25/03/2022,201473,2667,COVID SMALL BUSINESS GRANT
Eden District Council,http://opendatacommunities.org/id/district-council/eden,Financial Services Manager,Emergency Planning and Works,Grants and contributions,Horse and Farrier Ltd,40231512,25/03/2022,201474,2667,COVID SMALL BUSINESS GRANT
Eden District Council,http://opendatacommunities.org/id/district-council/eden,Financial Services Manager,Emergency Planning and Works,Grants and contributions,J D Wetherspoon Plc,40212306,25/03/2022,201475,6000,COVID SMALL BUSINESS GRANT
Eden District Council,http://opendatacommunities.org/id/district-council/eden,Financial Services Manager,Emergency Planning and Works,Grants and contributions,THE RATE PAYER,40241069,25/03/2022,201476,2667,COVID SMALL BUSINESS GRANT
Eden District Council,http://opendatacommunities.org/id/district-council/eden,Financial Services Manager,Emergency Planning and Works,Grants and contributions,Harrison Leisure UK Ltd,40167949,25/03/2022,201477,6000,COVID SMALL BUSINESS GRANT
Eden District Council,http://opendatacommunities.org/id/district-council/eden,Financial Services Manager,Emergency Planning and Works,Grants and contributions,Travelodge Hotels Limited,40153544,25/03/2022,201478,4000,COVID SMALL BUSINESS GRANT
Eden District Council,http://opendatacommunities.org/id/district-council/eden,Financial Services Manager,Emergency Planning and Works,Grants and contributions,THE RATE PAYER,40239073,25/03/2022,201479,2667,COVID SMALL BUSINESS GRANT
Eden District Council,http://opendatacommunities.org/id/district-council/eden,Financial Services Manager,Emergency Planning and Works,Grants and contributions,KIRKBY STEPHEN SPORTS & SOCIAL CLUB AND INSITUTE LTD,40034490,25/03/2022,201480,2667,COVID SMALL BUSINESS GRANT
Eden District Council,http://opendatacommunities.org/id/district-council/eden,Financial Services Manager,Emergency Planning and Works,Grants and contributions,Beacon Archers,40249155,25/03/2022,201481,2667,COVID SMALL BUSINESS GRANT
Eden District Council,http://opendatacommunities.org/id/district-council/eden,Financial Services Manager,Central Expenses,Unique payments ****,INLAND REVENUE,INL003,31/03/2022,201527,2824.2,COVID SMALL BUSINESS GRANT
Eden District Council,http://opendatacommunities.org/id/district-council/eden,Financial Services Manager,Emergency Planning and Works,Advertising,BARRNON MEDIA LTD,CUM001,31/03/2022,201371,500,COVID AD 19.03.22
Eden District Council,http://opendatacommunities.org/id/district-council/eden,Commercial Services Manager,Commercial Services,Agency Staff,VIVID RESOURCING,VIV001,31/03/2022,201500,2750,TIME SHEET WE 20.03.22GM
Eden District Council,http://opendatacommunities.org/id/district-council/eden,Planning Services,Planning Services,Agency Staff,VIVID RESOURCING,VIV001,31/03/2022,201504,2750,TIME SHEET WE 20.03.22RF
Eden District Council,http://opendatacommunities.org/id/district-council/eden,Commercial Services Manager,Commercial Services,Agency Staff,VIVID RESOURCING,VIV001,31/03/2022,201507,4375,TIME SHEET WE 20.03.22 FM
Eden District Council,http://opendatacommunities.org/id/district-council/eden,Commercial Services Manager,Tourism Promotion,Grants and contributions,CUMBRIA CHAMBER OF COMMERCE AND INDUSTRY,CUM003,31/03/2022,201516,2200,22 MEMBERSHIPS
Eden District Council,http://opendatacommunities.org/id/district-council/eden,Environmental Services,Home Improvement Agency,Professional fees,NATTERJACK MARKETING LTD,NAT041,31/03/2022,200128,1000,FEB 22 GHG LAD 2 MARKETING SUPPORT
Eden District Council,http://opendatacommunities.org/id/district-council/eden,Technical Services Manager,Administrative Buildings,Planned Maintenance,DYNAMIC JOINERY LTD,DYN004,31/03/2022,200918,1487,REPAIRS AND DECORATE
Eden District Council,http://opendatacommunities.org/id/district-council/eden,Commercial Services Manager,Tourism Promotion,Distribution,NPD NORTH LTD,NPD001,31/03/2022,201183,650,ADVERT PERFECT DAY OUT 2022
Eden District Council,http://opendatacommunities.org/id/district-council/eden,Planning Services,Planning Services,Agency Staff,VIVID RESOURCING,VIV001,31/03/2022,201200,1860,TIME SHEET WE 6.3.22 PJ
Eden District Council,http://opendatacommunities.org/id/district-council/eden,Legal Services Manager,Elections,Supplies general,ENVIPRINT,ENV022,31/03/2022,201273,5225.5,ELECTION SCREENS
Eden District Council,http://opendatacommunities.org/id/district-council/eden,Human Resources Manager,Central Expenses,Advertising,Reed Specialist Recruitment Ltd,REE009,31/03/2022,201279,2415.64,PLACEMENT FEE ACCOUNT TECH
Eden District Council,http://opendatacommunities.org/id/district-council/eden,Human Resources Manager,Central Expenses,Advertising,Reed Specialist Recruitment Ltd,REE009,31/03/2022,201282,3415.64,INTRO PERM POSITION ACCOUNTS TECH
Eden District Council,http://opendatacommunities.org/id/district-council/eden,Planning Services,Planning Services,Agency Staff,VIVID RESOURCING,VIV001,31/03/2022,201296,689,TIME SHEET WE 13.3.22 dm
Eden District Council,http://opendatacommunities.org/id/district-council/eden,Planning Services,Planning Services,Agency Staff,VIVID RESOURCING,VIV001,31/03/2022,201297,2220,TIME SHEET WE 13.3.22 PJ
Eden District Council,http://opendatacommunities.org/id/district-council/eden,Planning Services,Planning Services,Agency Staff,VIVID RESOURCING,VIV001,31/03/2022,201298,2250,TIME SHEET WE 13.3.22 JS
Eden District Council,http://opendatacommunities.org/id/district-council/eden,Technical Services Manager,Technical Services,Salaries,VIVID RESOURCING,VIV001,31/03/2022,201300,1762.5,TIME SHEET WE 13.03.22 DH
Eden District Council,http://opendatacommunities.org/id/district-council/eden,Commercial Services Manager,Emergency Planning and Works,Professional fees,REDKITE INNOVATIONS LTD,RED012,31/03/2022,201307,6800,Q4 EDEN BUSINESS ASSIST
Eden District Council,http://opendatacommunities.org/id/district-council/eden,Technical Services Manager,Recycling,Bank-Refurbishment,IAN CANNON LTD,CAN004,31/03/2022,201335,2350,PRESSURE WASH BRING SITES
Eden District Council,http://opendatacommunities.org/id/district-council/eden,Technical Services Manager,Cemeteries,GM External Contractors,NORTH WEST ARBORICULTURAL SERVICES LTD,NOR066,31/03/2022,201356,2585,TREE WORKS GARRIGIL CEMETERY
Eden District Council,http://opendatacommunities.org/id/district-council/eden,Commercial Services Manager,Commercial Services,Agency Staff,REDACTED INOFRMATION,BAL010,31/03/2022,201374,3133.3,ECO TEAM SUPPORT MAR 22
Eden District Council,http://opendatacommunities.org/id/district-council/eden,Environmental Services,1996 Mandatory Renovation Grants,Capital grants,TOP NOTCH CONTRACTORS LTD,TOP003,31/03/2022,201375,4980,FIN PAYMENT GRANT REF 210044
Eden District Council,http://opendatacommunities.org/id/district-council/eden,Transformation & Customers Head of,Central Expenses,Postages,CUMBRIA MAILING SERVICES LTD,CUM011,31/03/2022,201378,602.16,REFUSE SACKS / MAILING
Eden District Council,http://opendatacommunities.org/id/district-council/eden,Commercial Services Manager,Community Development & Engagement,Community Fund,LAZONBY VILLAGE HALL,LAZ004,31/03/2022,200100,5100,1ST PAYMENT EDEN COMMUNITY FUND
Eden District Council,http://opendatacommunities.org/id/district-council/eden,Transformation & Customers Head of,Corporate Services,Equipment � purchase,IDEAGEN GAEL,IDE007,31/03/2022,201221,3880,PENTANA RISK YR 2 28.5.22-27.5.23
Eden District Council,http://opendatacommunities.org/id/district-council/eden,Legal Services Manager,Legal Services,Professional fees,SOUTH LAKELAND DISTRICT COUNCIL,SOU006,31/03/2022,201274,6666.67,LGR RECHARGE FOR INVOICES
Eden District Council,http://opendatacommunities.org/id/district-council/eden,Technical Services Manager,Cemeteries,ADHOC WORKS FOR BURIALS,URBASER LIMITED,URB002,31/03/2022,201348,2763.42,BURIALS jAN 22
Eden District Council,http://opendatacommunities.org/id/district-council/eden,Technical Services Manager,Closed Church Yards,GM INSPECTIONS & MAINTENANCE,URBASER LIMITED,URB002,31/03/2022,201350,17408.82,GM CONTRACT MAR 22
Eden District Council,http://opendatacommunities.org/id/district-council/eden,Commercial Services Manager,Community Development & Engagement,Grants and contributions,KIRKBY STEPHEN TOWN COUNCIL,KIR014,31/03/2022,201364,4540,21/22 EDC K/S LOCAL LINKS & COMMUNITY CE
Eden District Council,http://opendatacommunities.org/id/district-council/eden,Commercial Services Manager,Town Centres,Grants and contributions,BARTON PARISH COUNCIL,BAR001,31/03/2022,201365,2463.26,WELCOME BACK TO EDEN GRANT 2
Eden District Council,http://opendatacommunities.org/id/district-council/eden,Revenue/Benefits Manager,Refunds Overpayments,Unique payments ****,MR G J SLACK & MISS V R HARLOWE,HAR082,31/03/2022,201366,812.16,COUNCIL TAX REDUCTION REFUND
Eden District Council,http://opendatacommunities.org/id/district-council/eden,Technical Services Manager,Footway Lighting,Electricity,NPOWER LTD,NPO001,31/03/2022,201488,3907.73,MH 1.1.22-31.01.22
Eden District Council,http://opendatacommunities.org/id/district-council/eden,Technical Services Manager,Footway Lighting,Electricity,NPOWER LTD,NPO001,31/03/2022,201489,3388.4,MH LIGHTING 01.2.22-28.02.22
Eden District Council,http://opendatacommunities.org/id/district-council/eden,Technical Services Manager,Footway Lighting,Electricity,NPOWER LTD,NPO001,31/03/2022,201490,3944.57,MH LIGHTING 01.12.21-31.12.21
Eden District Council,http://opendatacommunities.org/id/district-council/eden,Financial Services Manager,Financial Services,Internal Audit,TIAA LTD,TIA001,31/03/2022,201492,8125,21/22 LEISURE MANAGMENT / INCOME COLLECT
Eden District Council,http://opendatacommunities.org/id/district-council/eden,Commercial Services Manager,Economic Development and Promotion,Professional fees,CERBERUS PRINTING LTD,CER001,31/03/2022,201510,750,GRAPHIC DESIGN 4 DISPLAY BOARDS
Eden District Council,http://opendatacommunities.org/id/district-council/eden,Financial Services Manager,Corporate Costs,Audit fee,GRANT THORNTON UK LLP,THO026,31/03/2022,201524,9699,2021-22 EXTERNAL AUDIT 3 OF 4
Eden District Council,http://opendatacommunities.org/id/district-council/eden,Information Technology Manager,Information Technology,Computer equipment,INSIGHT DIRECT (UK) LTD,INS014,31/03/2022,201526,1288.8,LED MONITOR
Eden District Council,http://opendatacommunities.org/id/district-council/eden,Technical Services Manager,Eden Leisure Centre & Appleby Swimming P,LEISURE MAINTENANCE,IAN CANNON LTD,CAN004,31/03/2022,201530,1375,SUPPLY ROCKS FRENCHFIELD
Eden District Council,http://opendatacommunities.org/id/district-council/eden,Information Technology Manager,Information Technology,Software � maintenance,MERITEC LIMITED,MER004,31/03/2022,201534,6500,MERIT DAYS - DIGITAL
Eden District Council,http://opendatacommunities.org/id/district-council/eden,Technical Services Manager,Eden Leisure Centre & Appleby Swimming P,Additional covid costs provision,GREENWICH LEISURE LTD,NCL001,31/03/2022,200030,29209.52,NLRF JULY AND AUG 21
Eden District Council,http://opendatacommunities.org/id/district-council/eden,Information Technology Manager,Information Technology,IT Contracts & Maintenance,IT PROFESSIONAL SERVICES LTD,ITP001,31/03/2022,200140,8500,MANAGED SERVICE 2022-23
Eden District Council,http://opendatacommunities.org/id/district-council/eden,Legal Services Manager,Land Management,Professional fees,WALTON GOODLAND LTD,WAL008,31/03/2022,200914,3234,RATE FOR SURVEYOR 1-28 FEB 22
Eden District Council,http://opendatacommunities.org/id/district-council/eden,Technical Services Manager,Eden Leisure Centre & Appleby Swimming P,LEISURE MAINTENANCE,URBASER LIMITED,URB002,31/03/2022,201087,17775.3,BUILDING RESPONSE AD HOC JUNE 21
Eden District Council,http://opendatacommunities.org/id/district-council/eden,Technical Services Manager,Eden Leisure Centre & Appleby Swimming P,Additional covid costs provision,GREENWICH LEISURE LTD,NCL001,31/03/2022,201220,17688.73,NLRF OCT21 AND DEC21
Eden District Council,http://opendatacommunities.org/id/district-council/eden,Environmental Services,Environmental Enforcement,Dog Contract O.O.H retainer,URBASER LIMITED,URB002,31/03/2022,201278,970.81,STRAY DOG MARCH22
Eden District Council,http://opendatacommunities.org/id/district-council/eden,Environmental Services,Pollution Control,Professional fees,REDACTED INOFRMATION,WAL050,31/03/2022,201491,1698,APPEAL 3.08.21
Eden District Council,http://opendatacommunities.org/id/district-council/eden,Planning Services,Planning Services,Agency Staff,VIVID RESOURCING,VIV001,31/03/2022,201502,1500,TIME SHEET WE 20.03.22 JS
Eden District Council,http://opendatacommunities.org/id/district-council/eden,Planning Services,Planning Services,Agency Staff,VIVID RESOURCING,VIV001,31/03/2022,201505,2220,TIME SHEET WE 20.03.22 PJ
Eden District Council,http://opendatacommunities.org/id/district-council/eden,Commercial Services Manager,Economic Development and Promotion,Grants and contributions,DMB BUILDING LTD,DMB001,31/03/2022,201512,500,1ST APPRENTICE PAYMENT RC
Eden District Council,http://opendatacommunities.org/id/district-council/eden,Commercial Services Manager,Economic Development and Promotion,Grants and contributions,DMB BUILDING LTD,DMB001,31/03/2022,201513,1000,1ST APPRENTICE PAYMENT JB
Eden District Council,http://opendatacommunities.org/id/district-council/eden,Commercial Services Manager,Economic Development and Promotion,Grants and contributions,DMB BUILDING LTD,DMB001,31/03/2022,201514,1000,1ST APPRENTICE PAYMENT FM
Eden District Council,http://opendatacommunities.org/id/district-council/eden,Commercial Services Manager,Economic Development and Promotion,Grants and contributions,DMB BUILDING LTD,DMB001,31/03/2022,201515,500,1ST APPRENTICE PAYMENT JF
Eden District Council,http://opendatacommunities.org/id/district-council/eden,Commercial Services Manager,Economic Development and Promotion,Grants and contributions,HARKNESS ELECTRICAL LTD,HAR080,31/03/2022,201519,500,FINAL APPRENTICE PAYMENT KH
Eden District Council,http://opendatacommunities.org/id/district-council/eden,Environmental Services,Water Sampling,Professional fees,UNITED UTILITIES WATER PLC,UNI024,31/03/2022,201520,500.14,INCOME LABS FEB22
Eden District Council,http://opendatacommunities.org/id/district-council/eden,Technical Services Manager,Public Conveniences,Building Maintenance,URBASER LIMITED,URB002,31/03/2022,201521,1797.45,BUILDING RESPONSE AD HOC JAN22
Eden District Council,http://opendatacommunities.org/id/district-council/eden,Environmental Services,Pollution Control,Professional fees,TRINITY CHAMBERS,TRI010,31/03/2022,201525,5637.5,PROFESSIONAL / COURT FEES
Eden District Council,http://opendatacommunities.org/id/district-council/eden,Commercial Services Manager,Economic Development and Promotion,Professional fees,LOW HOWGILL LTD,LOW027,31/03/2022,201531,1607.63,PAYMENT FOR WORKS RE PSICA APPLEBY HERIT
Eden District Council,http://opendatacommunities.org/id/district-council/eden,Environmental Services,Environmental Services,Agency Staff,VIVID RESOURCING,VIV001,31/03/2022,201295,1480,TIME SHEET WE 13.03.22 BN
Eden District Council,http://opendatacommunities.org/id/district-council/eden,Technical Services Manager,Technical Services,Salaries,VIVID RESOURCING,VIV001,31/03/2022,201496,1762.5,TIME SHEET WE 20.03.22 DH
Eden District Council,http://opendatacommunities.org/id/district-council/eden,Environmental Services,Environmental Services,Agency Staff,VIVID RESOURCING,VIV001,31/03/2022,201501,1480,TIME SHEET WE 20.03.22 BN
Eden District Council,http://opendatacommunities.org/id/district-council/eden,Planning Services,Planning Services,Agency Staff,VIVID RESOURCING,VIV001,31/03/2022,201503,759.49,TIME SHEET WE 20.03.22 DM
Eden District Council,http://opendatacommunities.org/id/district-council/eden,Planning Services,Planning Services,Agency Staff,G2 RECRUITMENT SOLUTIONS,G2R001,31/03/2022,201508,1665,TIME SHEET WE 20.03.22JH
Eden District Council,http://opendatacommunities.org/id/district-council/eden,Technical Services Manager,Land Management,Preliminary expenses,Collinson Construction Ltd,COL033,30/03/2022,201613,56789,Inv1 PCSA Agreement
Eden District Council,http://opendatacommunities.org/id/district-council/eden,Technical Services Manager,Land Management,Preliminary expenses,Collinson Construction Ltd,COL033,30/03/2022,201618,-56789,Inv 1 PCSA Agreement
Eden District Council,http://opendatacommunities.org/id/district-council/eden,Technical Services Manager,Land Management,Preliminary expenses,Collinson Construction Ltd,COL033,30/03/2022,201619,55939,Inv 2 PCSA Agreement
Eden District Council,http://opendatacommunities.org/id/district-council/eden,Technical Services Manager,Land Management,Preliminary expenses,Collinson Construction Ltd,COL033,30/03/2022,201622,-55939,INV2 PCSA Agreement
Eden District Council,http://opendatacommunities.org/id/district-council/eden,Financial Services Manager,Emergency Planning and Works,Grants and contributions,Cumbrian Kitchen Ltd,40256443,01/04/2022,201626,4000,COVID SMALL BUSINESS GRANT
Eden District Council,http://opendatacommunities.org/id/district-council/eden,Financial Services Manager,Emergency Planning and Works,Grants and contributions,Howfoot Leisure Ltd,40240905,01/04/2022,201627,2667,COVID SMALL BUSINESS GRANT
Eden District Council,http://opendatacommunities.org/id/district-council/eden,Financial Services Manager,Emergency Planning and Works,Grants and contributions,PAYMAN HOLDINGS 7 LTD,40253253,01/04/2022,201628,2667,COVID SMALL BUSINESS GRANT
Eden District Council,http://opendatacommunities.org/id/district-council/eden,Financial Services Manager,Emergency Planning and Works,Grants and contributions,PAYMAN HOLDINGS 7 LTD,40253246,01/04/2022,201629,2667,COVID SMALL BUSINESS GRANT
Eden District Council,http://opendatacommunities.org/id/district-council/eden,Financial Services Manager,Emergency Planning and Works,Grants and contributions, sun hotel,40256481,01/04/2022,201630,6000,COVID SMALL BUSINESS GRANT
Eden District Council,http://opendatacommunities.org/id/district-council/eden,Financial Services Manager,Emergency Planning and Works,Grants and contributions,Red Squirrel Hospitality Ltd,40248602,01/04/2022,201631,4000,COVID SMALL BUSINESS GRANT
Eden District Council,http://opendatacommunities.org/id/district-council/eden,Financial Services Manager,Emergency Planning and Works,Grants and contributions,Cityshaks Residential Ltd,40254454,01/04/2022,201632,4000,COVID SMALL BUSINESS GRANT
Eden District Council,http://opendatacommunities.org/id/district-council/eden,Financial Services Manager,Emergency Planning and Works,Grants and contributions,Bracecastle Limited,40256825,01/04/2022,201633,2667,COVID SMALL BUSINESS GRANT
Eden District Council,http://opendatacommunities.org/id/district-council/eden,Financial Services Manager,Emergency Planning and Works,Grants and contributions,THE RATE PAYER,40256658,01/04/2022,201634,2667,COVID SMALL BUSINESS GRANT
Eden District Council,http://opendatacommunities.org/id/district-council/eden,Financial Services Manager,Emergency Planning and Works,Grants and contributions,Aarohi Properties Ltd,40256337,01/04/2022,201635,2667,COVID SMALL BUSINESS GRANT
Eden District Council,http://opendatacommunities.org/id/district-council/eden,Financial Services Manager,Emergency Planning and Works,Grants and contributions,JOOF HOTELS LIMITED (SHOULD BE JOOF OPS LTD PLS AMEND),40256290,01/04/2022,201636,2667,COVID SMALL BUSINESS GRANT
Eden District Council,http://opendatacommunities.org/id/district-council/eden,Financial Services Manager,Emergency Planning and Works,Grants and contributions,Webb Partners Limited,40256627,01/04/2022,201637,2667,COVID SMALL BUSINESS GRANT
Eden District Council,http://opendatacommunities.org/id/district-council/eden,Financial Services Manager,Emergency Planning and Works,Grants and contributions,Middle Bank End Caravan Park,40056667,01/04/2022,201638,2667,COVID SMALL BUSINESS GRANT
Eden District Council,http://opendatacommunities.org/id/district-council/eden,Financial Services Manager,Emergency Planning and Works,Grants and contributions,Crown House,40254942,01/04/2022,201639,2667,COVID SMALL BUSINESS GRANT
Eden District Council,http://opendatacommunities.org/id/district-council/eden,Financial Services Manager,Emergency Planning and Works,Grants and contributions,Cherry Cottage,40252991,01/04/2022,201640,2667,COVID SMALL BUSINESS GRANT
Eden District Council,http://opendatacommunities.org/id/district-council/eden,Financial Services Manager,Emergency Planning and Works,Grants and contributions,Alanholme Caravan & Camping,40257767,01/04/2022,201641,2667,COVID SMALL BUSINESS GRANT
Eden District Council,http://opendatacommunities.org/id/district-council/eden,Financial Services Manager,Emergency Planning and Works,Grants and contributions,THE RATE PAYER,40255273,01/04/2022,201642,2667,COVID SMALL BUSINESS GRANT
Eden District Council,http://opendatacommunities.org/id/district-council/eden,Financial Services Manager,Emergency Planning and Works,Grants and contributions,The Country Coffee Shop,40253291,01/04/2022,201643,2667,COVID SMALL BUSINESS GRANT
Eden District Council,http://opendatacommunities.org/id/district-council/eden,Financial Services Manager,Emergency Planning and Works,Grants and contributions,Brackenber Moor House,40256764,01/04/2022,201644,2667,COVID SMALL BUSINESS GRANT
Eden District Council,http://opendatacommunities.org/id/district-council/eden,Financial Services Manager,Emergency Planning and Works,Grants and contributions,Quarry Cottage,40256672,01/04/2022,201645,2667,COVID SMALL BUSINESS GRANT
Eden District Council,http://opendatacommunities.org/id/district-council/eden,Financial Services Manager,Emergency Planning and Works,Grants and contributions,Butt House,40256757,01/04/2022,201646,2667,COVID SMALL BUSINESS GRANT
Eden District Council,http://opendatacommunities.org/id/district-council/eden,Financial Services Manager,Emergency Planning and Works,Grants and contributions,Robsons Cottage,40256894,01/04/2022,201647,2667,COVID SMALL BUSINESS GRANT
Eden District Council,http://opendatacommunities.org/id/district-council/eden,Financial Services Manager,Emergency Planning and Works,Grants and contributions,THE RATE PAYER,40257774,01/04/2022,201648,2667,COVID SMALL BUSINESS GRANT
Eden District Council,http://opendatacommunities.org/id/district-council/eden,Financial Services Manager,Emergency Planning and Works,Grants and contributions,Treetops,40256900,01/04/2022,201649,2667,COVID SMALL BUSINESS GRANT
Eden District Council,http://opendatacommunities.org/id/district-council/eden,Financial Services Manager,Emergency Planning and Works,Grants and contributions,Kingfisher Lodge River House,40257675,01/04/2022,201650,2667,COVID SMALL BUSINESS GRANT
Eden District Council,http://opendatacommunities.org/id/district-council/eden,Financial Services Manager,Emergency Planning and Works,Grants and contributions,THE RATE PAYER,40257026,01/04/2022,201651,2667,COVID SMALL BUSINESS GRANT
Eden District Council,http://opendatacommunities.org/id/district-council/eden,Financial Services Manager,Emergency Planning and Works,Grants and contributions,THE RATE PAYER,40257002,01/04/2022,201652,2667,COVID SMALL BUSINESS GRANT
Eden District Council,http://opendatacommunities.org/id/district-council/eden,Financial Services Manager,Emergency Planning and Works,Grants and contributions,THE RATE PAYER,40256917,01/04/2022,201653,2667,COVID SMALL BUSINESS GRANT
Eden District Council,http://opendatacommunities.org/id/district-council/eden,Financial Services Manager,Emergency Planning and Works,Grants and contributions,Langton Field Caravan Park ,40256931,01/04/2022,201654,2667,COVID SMALL BUSINESS GRANT
Eden District Council,http://opendatacommunities.org/id/district-council/eden,Financial Services Manager,Emergency Planning and Works,Grants and contributions,Unique Holidays Stays Limited,40257934,01/04/2022,201655,2667,COVID SMALL BUSINESS GRANT
Eden District Council,http://opendatacommunities.org/id/district-council/eden,Financial Services Manager,Emergency Planning and Works,Grants and contributions,High Sprintgill & Sally End,40255938,01/04/2022,201656,2667,COVID SMALL BUSINESS GRANT
Eden District Council,http://opendatacommunities.org/id/district-council/eden,Financial Services Manager,Emergency Planning and Works,Grants and contributions,The Crown Inn,40215930,01/04/2022,201657,2667,COVID SMALL BUSINESS GRANT
Eden District Council,http://opendatacommunities.org/id/district-council/eden,Technical Services Manager,Eden Leisure Centre & Appleby Swimming P,Building Maintenance - Leisure,A DAVIDSON LTD,DAV038,31/03/2022,201528,11185,PEN LEISURE CENTRE WORK ON SCUM CHANNEL
Eden District Council,http://opendatacommunities.org/id/district-council/eden,Financial Services Manager,Benefits,Unique payments ****,INLAND REVENUE,INL003,31/03/2022,201678,3007.2,INLAND REVENUE
Eden District Council,http://opendatacommunities.org/id/district-council/eden,Revenue/Benefits Manager,Benefits,Rent allowance,Housing Benefit Allowance,EDC001,31/03/2022,224741,1524.6,Housing Benefit Allowance
Eden District Council,http://opendatacommunities.org/id/district-council/eden,Revenue/Benefits Manager,Business Rate Refunds,Unique payments ****,Housing Benefit Allowance,EDC001,31/03/2022,224742,15497.52,Housing Benefit Allowance
Eden District Council,http://opendatacommunities.org/id/district-council/eden,Revenue/Benefits Manager,Business Rate Refunds,Unique payments ****,Refunds Overpayments,EDC001,31/03/2022,224743,13207.42,Refunds Overpayments
Eden District Council,http://opendatacommunities.org/id/district-council/eden,Revenue/Benefits Manager,Benefits,Rent allowance,Housing Benefit Allowance,EDC001,31/03/2022,224744,6319.86,Housing Benefit Allowance
Eden District Council,http://opendatacommunities.org/id/district-council/eden,Revenue/Benefits Manager,Benefits,Rent allowance,Housing Benefit Allowance,EDC001,31/03/2022,224745,2616.07,Housing Benefit Allowance
Eden District Council,http://opendatacommunities.org/id/district-council/eden,Revenue/Benefits Manager,Business Rate Refunds,Unique payments ****,Refunds Overpayments,EDC001,31/03/2022,224746,4627.24,Refunds Overpayments
Eden District Council,http://opendatacommunities.org/id/district-council/eden,Revenue/Benefits Manager,Business Rate Refunds,Unique payments ****,Refunds Overpayments,EDC001,31/03/2022,224747,42249.14,Refunds Overpayments
Eden District Council,http://opendatacommunities.org/id/district-council/eden,Revenue/Benefits Manager,Business Rate Refunds,Unique payments ****,Refunds Overpayments,EDC001,31/03/2022,224749,3339.42,Refunds Overpayments
Eden District Council,http://opendatacommunities.org/id/district-council/eden,Revenue/Benefits Manager,Business Rate Refunds,Unique payments ****,Refunds Overpayments,EDC001,31/03/2022,224750,772.94,Refunds Overpayments
Eden District Council,http://opendatacommunities.org/id/district-council/eden,Revenue/Benefits Manager,Benefits,Rent allowance,Housing Benefit Allowance,EDC001,31/03/2022,224751,2380.83,Housing Benefit Allowance
Eden District Council,http://opendatacommunities.org/id/district-council/eden,Revenue/Benefits Manager,Benefits,Rent allowance,Housing Benefit Allowance,EDC001,31/03/2022,224752,4343.06,Housing Benefit Allowance
Eden District Council,http://opendatacommunities.org/id/district-council/eden,Revenue/Benefits Manager,Business Rate Refunds,Unique payments ****,Refunds Overpayments,EDC001,31/03/2022,224753,7157.95,Refunds Overpayments
Eden District Council,http://opendatacommunities.org/id/district-council/eden,Revenue/Benefits Manager,Business Rate Refunds,Unique payments ****,Refunds Overpayments,EDC001,31/03/2022,224754,2720.16,Refunds Overpayments
Eden District Council,http://opendatacommunities.org/id/district-council/eden,Revenue/Benefits Manager,Benefits,Rent allowance,Housing Benefit Allowance,EDC001,31/03/2022,225078,493830.95,Housing Benefit Allowance
Eden District Council,http://opendatacommunities.org/id/district-council/eden,Revenue/Benefits Manager,Benefits,Rent allowance,Housing Benefit Allowance,EDC001,31/03/2022,225079,1883.65,Housing Benefit Allowance
